{"text_format":"3","workbook":"xlsx","n_sheets":4,"sheets":["RESUMEN DE PRESUPUESTO DEL AÑO","RESUMEN DE GASTOS MENSUALES","GASTOS DETALLADOS","BENEFICENCIA Y PATROCINIOS"],"not_rendered":{"images":1,"defined_names":15},"read":"whole","date_system":"1900"}

{"sheet":"RESUMEN DE PRESUPUESTO DEL AÑO","index":0,"n_rows":16,"n_cols":7,"rows_kept":16,"merged":[[1,1,1,4]]}
[]
[null,"REAL frente a PRESUPUESTO HASTA LA FECHA",{"$nulls":3},"AÑO",{"$f":"YEAR(TODAY())","v":2019}]
[null,"Código de contabilidad general","Título de cuenta","Real","Presupuesto","RESTANTES EN € ","RESTANTES EN % "]
[null,1000,"Publicidad",{"$f":"SUMIF(ResumenDeGastosMensuales[Código de contabilidad general],YearToDateTable[[#This Row],[Código de contabilidad general]],ResumenDeGastosMensuales[Total])","v":{"v":0,"d":"0.00 €"}},{"v":100000,"d":"100,000.00 €"},{"$f":"IF(YearToDateTable[[#This Row],[Presupuesto]]=\"\",\"\",YearToDateTable[[#This Row],[Presupuesto]]-YearToDateTable[[#This Row],[Real]])","v":{"v":100000,"d":"100,000.00 €"}},{"$f":"IFERROR(YearToDateTable[[#This Row],[RESTANTES EN € ]]/YearToDateTable[[#This Row],[Presupuesto]],\"\")","v":{"v":1,"d":"100.00%"}}]
[null,2000,"Equipos de oficina",{"$f":"SUMIF(ResumenDeGastosMensuales[Código de contabilidad general],YearToDateTable[[#This Row],[Código de contabilidad general]],ResumenDeGastosMensuales[Total])","v":{"v":0,"d":"0.00 €"}},{"v":100000,"d":"100,000.00 €"},{"$f":"IF(YearToDateTable[[#This Row],[Presupuesto]]=\"\",\"\",YearToDateTable[[#This Row],[Presupuesto]]-YearToDateTable[[#This Row],[Real]])","v":{"v":100000,"d":"100,000.00 €"}},{"$f":"IFERROR(YearToDateTable[[#This Row],[RESTANTES EN € ]]/YearToDateTable[[#This Row],[Presupuesto]],\"\")","v":{"v":1,"d":"100.00%"}}]
[null,3000,"Impresoras",{"$f":"SUMIF(ResumenDeGastosMensuales[Código de contabilidad general],YearToDateTable[[#This Row],[Código de contabilidad general]],ResumenDeGastosMensuales[Total])","v":{"v":0,"d":"0.00 €"}},{"v":100000,"d":"100,000.00 €"},{"$f":"IF(YearToDateTable[[#This Row],[Presupuesto]]=\"\",\"\",YearToDateTable[[#This Row],[Presupuesto]]-YearToDateTable[[#This Row],[Real]])","v":{"v":100000,"d":"100,000.00 €"}},{"$f":"IFERROR(YearToDateTable[[#This Row],[RESTANTES EN € ]]/YearToDateTable[[#This Row],[Presupuesto]],\"\")","v":{"v":1,"d":"100.00%"}}]
[null,4000,"Costes de servidores",{"$f":"SUMIF(ResumenDeGastosMensuales[Código de contabilidad general],YearToDateTable[[#This Row],[Código de contabilidad general]],ResumenDeGastosMensuales[Total])","v":{"v":0,"d":"0.00 €"}},{"v":100000,"d":"100,000.00 €"},{"$f":"IF(YearToDateTable[[#This Row],[Presupuesto]]=\"\",\"\",YearToDateTable[[#This Row],[Presupuesto]]-YearToDateTable[[#This Row],[Real]])","v":{"v":100000,"d":"100,000.00 €"}},{"$f":"IFERROR(YearToDateTable[[#This Row],[RESTANTES EN € ]]/YearToDateTable[[#This Row],[Presupuesto]],\"\")","v":{"v":1,"d":"100.00%"}}]
[null,5000,"Suministros",{"$f":"SUMIF(ResumenDeGastosMensuales[Código de contabilidad general],YearToDateTable[[#This Row],[Código de contabilidad general]],ResumenDeGastosMensuales[Total])","v":{"v":0,"d":"0.00 €"}},{"v":50000,"d":"50,000.00 €"},{"$f":"IF(YearToDateTable[[#This Row],[Presupuesto]]=\"\",\"\",YearToDateTable[[#This Row],[Presupuesto]]-YearToDateTable[[#This Row],[Real]])","v":{"v":50000,"d":"50,000.00 €"}},{"$f":"IFERROR(YearToDateTable[[#This Row],[RESTANTES EN € ]]/YearToDateTable[[#This Row],[Presupuesto]],\"\")","v":{"v":1,"d":"100.00%"}}]
[null,6000,"Gastos del cliente",{"$f":"SUMIF(ResumenDeGastosMensuales[Código de contabilidad general],YearToDateTable[[#This Row],[Código de contabilidad general]],ResumenDeGastosMensuales[Total])","v":{"v":0,"d":"0.00 €"}},{"v":25000,"d":"25,000.00 €"},{"$f":"IF(YearToDateTable[[#This Row],[Presupuesto]]=\"\",\"\",YearToDateTable[[#This Row],[Presupuesto]]-YearToDateTable[[#This Row],[Real]])","v":{"v":25000,"d":"25,000.00 €"}},{"$f":"IFERROR(YearToDateTable[[#This Row],[RESTANTES EN € ]]/YearToDateTable[[#This Row],[Presupuesto]],\"\")","v":{"v":1,"d":"100.00%"}}]
[null,7000,"Ordenadores",{"$f":"SUMIF(ResumenDeGastosMensuales[Código de contabilidad general],YearToDateTable[[#This Row],[Código de contabilidad general]],ResumenDeGastosMensuales[Total])","v":{"v":0,"d":"0.00 €"}},{"v":75000,"d":"75,000.00 €"},{"$f":"IF(YearToDateTable[[#This Row],[Presupuesto]]=\"\",\"\",YearToDateTable[[#This Row],[Presupuesto]]-YearToDateTable[[#This Row],[Real]])","v":{"v":75000,"d":"75,000.00 €"}},{"$f":"IFERROR(YearToDateTable[[#This Row],[RESTANTES EN € ]]/YearToDateTable[[#This Row],[Presupuesto]],\"\")","v":{"v":1,"d":"100.00%"}}]
[null,8000,"Plan médico",{"$f":"SUMIF(ResumenDeGastosMensuales[Código de contabilidad general],YearToDateTable[[#This Row],[Código de contabilidad general]],ResumenDeGastosMensuales[Total])","v":{"v":0,"d":"0.00 €"}},{"v":65000,"d":"65,000.00 €"},{"$f":"IF(YearToDateTable[[#This Row],[Presupuesto]]=\"\",\"\",YearToDateTable[[#This Row],[Presupuesto]]-YearToDateTable[[#This Row],[Real]])","v":{"v":65000,"d":"65,000.00 €"}},{"$f":"IFERROR(YearToDateTable[[#This Row],[RESTANTES EN € ]]/YearToDateTable[[#This Row],[Presupuesto]],\"\")","v":{"v":1,"d":"100.00%"}}]
[null,9000,"Costes de construcción",{"$f":"SUMIF(ResumenDeGastosMensuales[Código de contabilidad general],YearToDateTable[[#This Row],[Código de contabilidad general]],ResumenDeGastosMensuales[Total])","v":{"v":0,"d":"0.00 €"}},{"v":125000,"d":"125,000.00 €"},{"$f":"IF(YearToDateTable[[#This Row],[Presupuesto]]=\"\",\"\",YearToDateTable[[#This Row],[Presupuesto]]-YearToDateTable[[#This Row],[Real]])","v":{"v":125000,"d":"125,000.00 €"}},{"$f":"IFERROR(YearToDateTable[[#This Row],[RESTANTES EN € ]]/YearToDateTable[[#This Row],[Presupuesto]],\"\")","v":{"v":1,"d":"100.00%"}}]
[null,10000,"Marketing",{"$f":"SUMIF(ResumenDeGastosMensuales[Código de contabilidad general],YearToDateTable[[#This Row],[Código de contabilidad general]],ResumenDeGastosMensuales[Total])","v":{"v":0,"d":"0.00 €"}},{"v":100000,"d":"100,000.00 €"},{"$f":"IF(YearToDateTable[[#This Row],[Presupuesto]]=\"\",\"\",YearToDateTable[[#This Row],[Presupuesto]]-YearToDateTable[[#This Row],[Real]])","v":{"v":100000,"d":"100,000.00 €"}},{"$f":"IFERROR(YearToDateTable[[#This Row],[RESTANTES EN € ]]/YearToDateTable[[#This Row],[Presupuesto]],\"\")","v":{"v":1,"d":"100.00%"}}]
[null,11000,"Beneficencia ",{"$f":"SUMIF(ResumenDeGastosMensuales[Código de contabilidad general],YearToDateTable[[#This Row],[Código de contabilidad general]],ResumenDeGastosMensuales[Total])","v":{"v":0,"d":"0.00 €"}},{"v":250000,"d":"250,000.00 €"},{"$f":"IF(YearToDateTable[[#This Row],[Presupuesto]]=\"\",\"\",YearToDateTable[[#This Row],[Presupuesto]]-YearToDateTable[[#This Row],[Real]])","v":{"v":250000,"d":"250,000.00 €"}},{"$f":"IFERROR(YearToDateTable[[#This Row],[RESTANTES EN € ]]/YearToDateTable[[#This Row],[Presupuesto]],\"\")","v":{"v":1,"d":"100.00%"}}]
[null,12000,"Patrocinios",{"$f":"SUMIF(ResumenDeGastosMensuales[Código de contabilidad general],YearToDateTable[[#This Row],[Código de contabilidad general]],ResumenDeGastosMensuales[Total])","v":{"v":0,"d":"0.00 €"}},{"v":50000,"d":"50,000.00 €"},{"$f":"IF(YearToDateTable[[#This Row],[Presupuesto]]=\"\",\"\",YearToDateTable[[#This Row],[Presupuesto]]-YearToDateTable[[#This Row],[Real]])","v":{"v":50000,"d":"50,000.00 €"}},{"$f":"IFERROR(YearToDateTable[[#This Row],[RESTANTES EN € ]]/YearToDateTable[[#This Row],[Presupuesto]],\"\")","v":{"v":1,"d":"100.00%"}}]
[null,"Total",null,{"$f":"SUBTOTAL(109,YearToDateTable[Real])","v":{"v":0,"d":"0.00 €"}},{"$f":"SUBTOTAL(109,YearToDateTable[Presupuesto])","v":{"v":1140000,"d":"1,140,000.00 €"}},{"$f":"SUBTOTAL(109,YearToDateTable[[RESTANTES EN € ]])","v":{"v":1140000,"d":"1,140,000.00 €"}},{"$f":"YearToDateTable[[#Totals],[RESTANTES EN € ]]/YearToDateTable[[#Totals],[Presupuesto]]","v":{"v":1,"d":"100.00%"}}]

{"sheet":"RESUMEN DE GASTOS MENSUALES","index":1,"n_rows":18,"n_cols":17,"rows_kept":18,"merged":[[1,1,1,16]]}
[]
[null,"RESUMEN DE GASTOS MENSUALES"]
[null,"Segmentación para filtrar los datos por los títulos de cuenta en esta celda.",null,{"$f":"DATEVALUE(\"1-ENE\"&_YEAR)","v":"2019-01-01"},{"$f":"DATEVALUE(\"1-FEB\"&_YEAR)","v":"2019-02-01"},{"$f":"DATEVALUE(\"1-MAR\"&_YEAR)","v":"2019-03-01"},{"$f":"DATEVALUE(\"1-ABR\"&_YEAR)","v":"2019-04-01"},{"$f":"DATEVALUE(\"1-MAY\"&_YEAR)","v":"2019-05-01"},{"$f":"DATEVALUE(\"1-JUN\"&_YEAR)","v":"2019-06-01"},{"$f":"DATEVALUE(\"1-JUL\"&_YEAR)","v":"2019-07-01"},{"$f":"DATEVALUE(\"1-AGO\"&_YEAR)","v":"2019-08-01"},{"$f":"DATEVALUE(\"1-SEP\"&_YEAR)","v":"2019-09-01"},{"$f":"DATEVALUE(\"1-OCT\"&_YEAR)","v":"2019-10-01"},{"$f":"DATEVALUE(\"1-NOV\"&_YEAR)","v":"2019-11-01"},{"$f":"DATEVALUE(\"1-DIC\"&_YEAR)","v":"2019-12-01"}]
[{"$nulls":3},{"$f":"EOMONTH(D3,0)","v":"2019-01-31"},{"$f":"EOMONTH(E3,0)","v":"2019-02-28"},{"$f":"EOMONTH(F3,0)","v":"2019-03-31"},{"$f":"EOMONTH(G3,0)","v":"2019-04-30"},{"$f":"EOMONTH(H3,0)","v":"2019-05-31"},{"$f":"EOMONTH(I3,0)","v":"2019-06-30"},"2019-07-31","2019-08-31","2019-09-30","2019-10-31","2019-11-30","2019-12-31"]
[null,"Código de contabilidad general","Título de cuenta","Enero","Febrero","Marzo","Abril","Mayo","Junio","Julio","Agosto","Septiembre","Octubre","Noviembre","Diciembre","Total"," "]
[null,1000,"Publicidad",{"$f":"SUMIFS(GastosDetallados[Importe del cheque],GastosDetallados[Código de contabilidad general],ResumenDeGastosMensuales[[#This Row],[Código de contabilidad general]],GastosDetallados[Fecha de la factura],\">=\"&D$3,GastosDetallados[Fecha de la factura],\"<=\"&D$4)+SUMIFS(Otros[Importe del cheque],Otros[Código de contabilidad general],ResumenDeGastosMensuales[[#This Row],[Código de contabilidad general]],Otros[[Fecha de solicitud del cheque ]],\">=\"&DATEVALUE(\" 1 \"&ResumenDeGastosMensuales[[#Headers],[Enero]]&_YEAR),Otros[[Fecha de solicitud del cheque ]],\"<=\"&D$4)","v":{"v":0,"d":"0.00 €"}},{"$f":"SUMIFS(GastosDetallados[Importe del cheque],GastosDetallados[Código de contabilidad general],ResumenDeGastosMensuales[[#This Row],[Código de contabilidad general]],GastosDetallados[Fecha de la factura],\">=\"&E$3,GastosDetallados[Fecha de la factura],\"<=\"&E$4)+SUMIFS(Otros[Importe del cheque],Otros[Código de contabilidad general],ResumenDeGastosMensuales[[#This Row],[Código de contabilidad general]],Otros[[Fecha de solicitud del cheque ]],\">=\"&DATEVALUE(\" 1 \"&ResumenDeGastosMensuales[[#Headers],[Enero]]&_YEAR),Otros[[Fecha de solicitud del cheque ]],\"<=\"&E$4)","v":{"v":0,"d":"0.00 €"}},{"$f":"SUMIFS(GastosDetallados[Importe del cheque],GastosDetallados[Código de contabilidad general],ResumenDeGastosMensuales[[#This Row],[Código de contabilidad general]],GastosDetallados[Fecha de la factura],\">=\"&F$3,GastosDetallados[Fecha de la factura],\"<=\"&F$4)+SUMIFS(Otros[Importe del cheque],Otros[Código de contabilidad general],ResumenDeGastosMensuales[[#This Row],[Código de contabilidad general]],Otros[[Fecha de solicitud del cheque ]],\">=\"&DATEVALUE(\" 1 \"&ResumenDeGastosMensuales[[#Headers],[Enero]]&_YEAR),Otros[[Fecha de solicitud del cheque ]],\"<=\"&F$4)","v":{"v":0,"d":"0.00 €"}},{"$f":"SUMIFS(GastosDetallados[Importe del cheque],GastosDetallados[Código de contabilidad general],ResumenDeGastosMensuales[[#This Row],[Código de contabilidad general]],GastosDetallados[Fecha de la factura],\">=\"&G$3,GastosDetallados[Fecha de la factura],\"<=\"&G$4)+SUMIFS(Otros[Importe del cheque],Otros[Código de contabilidad general],ResumenDeGastosMensuales[[#This Row],[Código de contabilidad general]],Otros[[Fecha de solicitud del cheque ]],\">=\"&DATEVALUE(\" 1 \"&ResumenDeGastosMensuales[[#Headers],[Enero]]&_YEAR),Otros[[Fecha de solicitud del cheque ]],\"<=\"&G$4)","v":{"v":0,"d":"0.00 €"}},{"$f":"SUMIFS(GastosDetallados[Importe del cheque],GastosDetallados[Código de contabilidad general],ResumenDeGastosMensuales[[#This Row],[Código de contabilidad general]],GastosDetallados[Fecha de la factura],\">=\"&H$3,GastosDetallados[Fecha de la factura],\"<=\"&H$4)+SUMIFS(Otros[Importe del cheque],Otros[Código de contabilidad general],ResumenDeGastosMensuales[[#This Row],[Código de contabilidad general]],Otros[[Fecha de solicitud del cheque ]],\">=\"&DATEVALUE(\" 1 \"&ResumenDeGastosMensuales[[#Headers],[Enero]]&_YEAR),Otros[[Fecha de solicitud del cheque ]],\"<=\"&H$4)","v":{"v":0,"d":"0.00 €"}},{"$f":"SUMIFS(GastosDetallados[Importe del cheque],GastosDetallados[Código de contabilidad general],ResumenDeGastosMensuales[[#This Row],[Código de contabilidad general]],GastosDetallados[Fecha de la factura],\">=\"&I$3,GastosDetallados[Fecha de la factura],\"<=\"&I$4)+SUMIFS(Otros[Importe del cheque],Otros[Código de contabilidad general],ResumenDeGastosMensuales[[#This Row],[Código de contabilidad general]],Otros[[Fecha de solicitud del cheque ]],\">=\"&DATEVALUE(\" 1 \"&ResumenDeGastosMensuales[[#Headers],[Enero]]&_YEAR),Otros[[Fecha de solicitud del cheque ]],\"<=\"&I$4)","v":{"v":0,"d":"0.00 €"}},{"$f":"SUMIFS(GastosDetallados[Importe del cheque],GastosDetallados[Código de contabilidad general],ResumenDeGastosMensuales[[#This Row],[Código de contabilidad general]],GastosDetallados[Fecha de la factura],\">=\"&J$3,GastosDetallados[Fecha de la factura],\"<=\"&J$4)+SUMIFS(Otros[Importe del cheque],Otros[Código de contabilidad general],ResumenDeGastosMensuales[[#This Row],[Código de contabilidad general]],Otros[[Fecha de solicitud del cheque ]],\">=\"&DATEVALUE(\" 1 \"&ResumenDeGastosMensuales[[#Headers],[Enero]]&_YEAR),Otros[[Fecha de solicitud del cheque ]],\"<=\"&J$4)","v":{"v":0,"d":"0.00 €"}},{"$f":"SUMIFS(GastosDetallados[Importe del cheque],GastosDetallados[Código de contabilidad general],ResumenDeGastosMensuales[[#This Row],[Código de contabilidad general]],GastosDetallados[Fecha de la factura],\">=\"&K$3,GastosDetallados[Fecha de la factura],\"<=\"&K$4)+SUMIFS(Otros[Importe del cheque],Otros[Código de contabilidad general],ResumenDeGastosMensuales[[#This Row],[Código de contabilidad general]],Otros[[Fecha de solicitud del cheque ]],\">=\"&DATEVALUE(\" 1 \"&ResumenDeGastosMensuales[[#Headers],[Enero]]&_YEAR),Otros[[Fecha de solicitud del cheque ]],\"<=\"&K$4)","v":{"v":0,"d":"0.00 €"}},{"$f":"SUMIFS(GastosDetallados[Importe del cheque],GastosDetallados[Código de contabilidad general],ResumenDeGastosMensuales[[#This Row],[Código de contabilidad general]],GastosDetallados[Fecha de la factura],\">=\"&L$3,GastosDetallados[Fecha de la factura],\"<=\"&L$4)+SUMIFS(Otros[Importe del cheque],Otros[Código de contabilidad general],ResumenDeGastosMensuales[[#This Row],[Código de contabilidad general]],Otros[[Fecha de solicitud del cheque ]],\">=\"&DATEVALUE(\" 1 \"&ResumenDeGastosMensuales[[#Headers],[Enero]]&_YEAR),Otros[[Fecha de solicitud del cheque ]],\"<=\"&L$4)","v":{"v":0,"d":"0.00 €"}},{"$f":"SUMIFS(GastosDetallados[Importe del cheque],GastosDetallados[Código de contabilidad general],ResumenDeGastosMensuales[[#This Row],[Código de contabilidad general]],GastosDetallados[Fecha de la factura],\">=\"&M$3,GastosDetallados[Fecha de la factura],\"<=\"&M$4)+SUMIFS(Otros[Importe del cheque],Otros[Código de contabilidad general],ResumenDeGastosMensuales[[#This Row],[Código de contabilidad general]],Otros[[Fecha de solicitud del cheque ]],\">=\"&DATEVALUE(\" 1 \"&ResumenDeGastosMensuales[[#Headers],[Enero]]&_YEAR),Otros[[Fecha de solicitud del cheque ]],\"<=\"&M$4)","v":{"v":0,"d":"0.00 €"}},{"$f":"SUMIFS(GastosDetallados[Importe del cheque],GastosDetallados[Código de contabilidad general],ResumenDeGastosMensuales[[#This Row],[Código de contabilidad general]],GastosDetallados[Fecha de la factura],\">=\"&N$3,GastosDetallados[Fecha de la factura],\"<=\"&N$4)+SUMIFS(Otros[Importe del cheque],Otros[Código de contabilidad general],ResumenDeGastosMensuales[[#This Row],[Código de contabilidad general]],Otros[[Fecha de solicitud del cheque ]],\">=\"&DATEVALUE(\" 1 \"&ResumenDeGastosMensuales[[#Headers],[Enero]]&_YEAR),Otros[[Fecha de solicitud del cheque ]],\"<=\"&N$4)","v":{"v":0,"d":"0.00 €"}},{"$f":"SUMIFS(GastosDetallados[Importe del cheque],GastosDetallados[Código de contabilidad general],ResumenDeGastosMensuales[[#This Row],[Código de contabilidad general]],GastosDetallados[Fecha de la factura],\">=\"&O$3,GastosDetallados[Fecha de la factura],\"<=\"&O$4)+SUMIFS(Otros[Importe del cheque],Otros[Código de contabilidad general],ResumenDeGastosMensuales[[#This Row],[Código de contabilidad general]],Otros[[Fecha de solicitud del cheque ]],\">=\"&DATEVALUE(\" 1 \"&ResumenDeGastosMensuales[[#Headers],[Enero]]&_YEAR),Otros[[Fecha de solicitud del cheque ]],\"<=\"&O$4)","v":{"v":0,"d":"0.00 €"}},{"$f":"SUM(ResumenDeGastosMensuales[[#This Row],[Enero]:[Diciembre]])","v":{"v":0,"d":"0.00 €"}}]
[null,2000,"Equipos de oficina",{"$f":"SUMIFS(GastosDetallados[Importe del cheque],GastosDetallados[Código de contabilidad general],ResumenDeGastosMensuales[[#This Row],[Código de contabilidad general]],GastosDetallados[Fecha de la factura],\">=\"&D$3,GastosDetallados[Fecha de la factura],\"<=\"&D$4)+SUMIFS(Otros[Importe del cheque],Otros[Código de contabilidad general],ResumenDeGastosMensuales[[#This Row],[Código de contabilidad general]],Otros[[Fecha de solicitud del cheque ]],\">=\"&DATEVALUE(\" 1 \"&ResumenDeGastosMensuales[[#Headers],[Enero]]&_YEAR),Otros[[Fecha de solicitud del cheque ]],\"<=\"&D$4)","v":{"v":0,"d":"0.00 €"}},{"$f":"SUMIFS(GastosDetallados[Importe del cheque],GastosDetallados[Código de contabilidad general],ResumenDeGastosMensuales[[#This Row],[Código de contabilidad general]],GastosDetallados[Fecha de la factura],\">=\"&E$3,GastosDetallados[Fecha de la factura],\"<=\"&E$4)+SUMIFS(Otros[Importe del cheque],Otros[Código de contabilidad general],ResumenDeGastosMensuales[[#This Row],[Código de contabilidad general]],Otros[[Fecha de solicitud del cheque ]],\">=\"&DATEVALUE(\" 1 \"&ResumenDeGastosMensuales[[#Headers],[Enero]]&_YEAR),Otros[[Fecha de solicitud del cheque ]],\"<=\"&E$4)","v":{"v":0,"d":"0.00 €"}},{"$f":"SUMIFS(GastosDetallados[Importe del cheque],GastosDetallados[Código de contabilidad general],ResumenDeGastosMensuales[[#This Row],[Código de contabilidad general]],GastosDetallados[Fecha de la factura],\">=\"&F$3,GastosDetallados[Fecha de la factura],\"<=\"&F$4)+SUMIFS(Otros[Importe del cheque],Otros[Código de contabilidad general],ResumenDeGastosMensuales[[#This Row],[Código de contabilidad general]],Otros[[Fecha de solicitud del cheque ]],\">=\"&DATEVALUE(\" 1 \"&ResumenDeGastosMensuales[[#Headers],[Enero]]&_YEAR),Otros[[Fecha de solicitud del cheque ]],\"<=\"&F$4)","v":{"v":0,"d":"0.00 €"}},{"$f":"SUMIFS(GastosDetallados[Importe del cheque],GastosDetallados[Código de contabilidad general],ResumenDeGastosMensuales[[#This Row],[Código de contabilidad general]],GastosDetallados[Fecha de la factura],\">=\"&G$3,GastosDetallados[Fecha de la factura],\"<=\"&G$4)+SUMIFS(Otros[Importe del cheque],Otros[Código de contabilidad general],ResumenDeGastosMensuales[[#This Row],[Código de contabilidad general]],Otros[[Fecha de solicitud del cheque ]],\">=\"&DATEVALUE(\" 1 \"&ResumenDeGastosMensuales[[#Headers],[Enero]]&_YEAR),Otros[[Fecha de solicitud del cheque ]],\"<=\"&G$4)","v":{"v":0,"d":"0.00 €"}},{"$f":"SUMIFS(GastosDetallados[Importe del cheque],GastosDetallados[Código de contabilidad general],ResumenDeGastosMensuales[[#This Row],[Código de contabilidad general]],GastosDetallados[Fecha de la factura],\">=\"&H$3,GastosDetallados[Fecha de la factura],\"<=\"&H$4)+SUMIFS(Otros[Importe del cheque],Otros[Código de contabilidad general],ResumenDeGastosMensuales[[#This Row],[Código de contabilidad general]],Otros[[Fecha de solicitud del cheque ]],\">=\"&DATEVALUE(\" 1 \"&ResumenDeGastosMensuales[[#Headers],[Enero]]&_YEAR),Otros[[Fecha de solicitud del cheque ]],\"<=\"&H$4)","v":{"v":0,"d":"0.00 €"}},{"$f":"SUMIFS(GastosDetallados[Importe del cheque],GastosDetallados[Código de contabilidad general],ResumenDeGastosMensuales[[#This Row],[Código de contabilidad general]],GastosDetallados[Fecha de la factura],\">=\"&I$3,GastosDetallados[Fecha de la factura],\"<=\"&I$4)+SUMIFS(Otros[Importe del cheque],Otros[Código de contabilidad general],ResumenDeGastosMensuales[[#This Row],[Código de contabilidad general]],Otros[[Fecha de solicitud del cheque ]],\">=\"&DATEVALUE(\" 1 \"&ResumenDeGastosMensuales[[#Headers],[Enero]]&_YEAR),Otros[[Fecha de solicitud del cheque ]],\"<=\"&I$4)","v":{"v":0,"d":"0.00 €"}},{"$f":"SUMIFS(GastosDetallados[Importe del cheque],GastosDetallados[Código de contabilidad general],ResumenDeGastosMensuales[[#This Row],[Código de contabilidad general]],GastosDetallados[Fecha de la factura],\">=\"&J$3,GastosDetallados[Fecha de la factura],\"<=\"&J$4)+SUMIFS(Otros[Importe del cheque],Otros[Código de contabilidad general],ResumenDeGastosMensuales[[#This Row],[Código de contabilidad general]],Otros[[Fecha de solicitud del cheque ]],\">=\"&DATEVALUE(\" 1 \"&ResumenDeGastosMensuales[[#Headers],[Enero]]&_YEAR),Otros[[Fecha de solicitud del cheque ]],\"<=\"&J$4)","v":{"v":0,"d":"0.00 €"}},{"$f":"SUMIFS(GastosDetallados[Importe del cheque],GastosDetallados[Código de contabilidad general],ResumenDeGastosMensuales[[#This Row],[Código de contabilidad general]],GastosDetallados[Fecha de la factura],\">=\"&K$3,GastosDetallados[Fecha de la factura],\"<=\"&K$4)+SUMIFS(Otros[Importe del cheque],Otros[Código de contabilidad general],ResumenDeGastosMensuales[[#This Row],[Código de contabilidad general]],Otros[[Fecha de solicitud del cheque ]],\">=\"&DATEVALUE(\" 1 \"&ResumenDeGastosMensuales[[#Headers],[Enero]]&_YEAR),Otros[[Fecha de solicitud del cheque ]],\"<=\"&K$4)","v":{"v":0,"d":"0.00 €"}},{"$f":"SUMIFS(GastosDetallados[Importe del cheque],GastosDetallados[Código de contabilidad general],ResumenDeGastosMensuales[[#This Row],[Código de contabilidad general]],GastosDetallados[Fecha de la factura],\">=\"&L$3,GastosDetallados[Fecha de la factura],\"<=\"&L$4)+SUMIFS(Otros[Importe del cheque],Otros[Código de contabilidad general],ResumenDeGastosMensuales[[#This Row],[Código de contabilidad general]],Otros[[Fecha de solicitud del cheque ]],\">=\"&DATEVALUE(\" 1 \"&ResumenDeGastosMensuales[[#Headers],[Enero]]&_YEAR),Otros[[Fecha de solicitud del cheque ]],\"<=\"&L$4)","v":{"v":0,"d":"0.00 €"}},{"$f":"SUMIFS(GastosDetallados[Importe del cheque],GastosDetallados[Código de contabilidad general],ResumenDeGastosMensuales[[#This Row],[Código de contabilidad general]],GastosDetallados[Fecha de la factura],\">=\"&M$3,GastosDetallados[Fecha de la factura],\"<=\"&M$4)+SUMIFS(Otros[Importe del cheque],Otros[Código de contabilidad general],ResumenDeGastosMensuales[[#This Row],[Código de contabilidad general]],Otros[[Fecha de solicitud del cheque ]],\">=\"&DATEVALUE(\" 1 \"&ResumenDeGastosMensuales[[#Headers],[Enero]]&_YEAR),Otros[[Fecha de solicitud del cheque ]],\"<=\"&M$4)","v":{"v":0,"d":"0.00 €"}},{"$f":"SUMIFS(GastosDetallados[Importe del cheque],GastosDetallados[Código de contabilidad general],ResumenDeGastosMensuales[[#This Row],[Código de contabilidad general]],GastosDetallados[Fecha de la factura],\">=\"&N$3,GastosDetallados[Fecha de la factura],\"<=\"&N$4)+SUMIFS(Otros[Importe del cheque],Otros[Código de contabilidad general],ResumenDeGastosMensuales[[#This Row],[Código de contabilidad general]],Otros[[Fecha de solicitud del cheque ]],\">=\"&DATEVALUE(\" 1 \"&ResumenDeGastosMensuales[[#Headers],[Enero]]&_YEAR),Otros[[Fecha de solicitud del cheque ]],\"<=\"&N$4)","v":{"v":0,"d":"0.00 €"}},{"$f":"SUMIFS(GastosDetallados[Importe del cheque],GastosDetallados[Código de contabilidad general],ResumenDeGastosMensuales[[#This Row],[Código de contabilidad general]],GastosDetallados[Fecha de la factura],\">=\"&O$3,GastosDetallados[Fecha de la factura],\"<=\"&O$4)+SUMIFS(Otros[Importe del cheque],Otros[Código de contabilidad general],ResumenDeGastosMensuales[[#This Row],[Código de contabilidad general]],Otros[[Fecha de solicitud del cheque ]],\">=\"&DATEVALUE(\" 1 \"&ResumenDeGastosMensuales[[#Headers],[Enero]]&_YEAR),Otros[[Fecha de solicitud del cheque ]],\"<=\"&O$4)","v":{"v":0,"d":"0.00 €"}},{"$f":"SUM(ResumenDeGastosMensuales[[#This Row],[Enero]:[Diciembre]])","v":{"v":0,"d":"0.00 €"}}]
[null,3000,"Impresoras",{"$f":"SUMIFS(GastosDetallados[Importe del cheque],GastosDetallados[Código de contabilidad general],ResumenDeGastosMensuales[[#This Row],[Código de contabilidad general]],GastosDetallados[Fecha de la factura],\">=\"&D$3,GastosDetallados[Fecha de la factura],\"<=\"&D$4)+SUMIFS(Otros[Importe del cheque],Otros[Código de contabilidad general],ResumenDeGastosMensuales[[#This Row],[Código de contabilidad general]],Otros[[Fecha de solicitud del cheque ]],\">=\"&DATEVALUE(\" 1 \"&ResumenDeGastosMensuales[[#Headers],[Enero]]&_YEAR),Otros[[Fecha de solicitud del cheque ]],\"<=\"&D$4)","v":{"v":0,"d":"0.00 €"}},{"$f":"SUMIFS(GastosDetallados[Importe del cheque],GastosDetallados[Código de contabilidad general],ResumenDeGastosMensuales[[#This Row],[Código de contabilidad general]],GastosDetallados[Fecha de la factura],\">=\"&E$3,GastosDetallados[Fecha de la factura],\"<=\"&E$4)+SUMIFS(Otros[Importe del cheque],Otros[Código de contabilidad general],ResumenDeGastosMensuales[[#This Row],[Código de contabilidad general]],Otros[[Fecha de solicitud del cheque ]],\">=\"&DATEVALUE(\" 1 \"&ResumenDeGastosMensuales[[#Headers],[Enero]]&_YEAR),Otros[[Fecha de solicitud del cheque ]],\"<=\"&E$4)","v":{"v":0,"d":"0.00 €"}},{"$f":"SUMIFS(GastosDetallados[Importe del cheque],GastosDetallados[Código de contabilidad general],ResumenDeGastosMensuales[[#This Row],[Código de contabilidad general]],GastosDetallados[Fecha de la factura],\">=\"&F$3,GastosDetallados[Fecha de la factura],\"<=\"&F$4)+SUMIFS(Otros[Importe del cheque],Otros[Código de contabilidad general],ResumenDeGastosMensuales[[#This Row],[Código de contabilidad general]],Otros[[Fecha de solicitud del cheque ]],\">=\"&DATEVALUE(\" 1 \"&ResumenDeGastosMensuales[[#Headers],[Enero]]&_YEAR),Otros[[Fecha de solicitud del cheque ]],\"<=\"&F$4)","v":{"v":0,"d":"0.00 €"}},{"$f":"SUMIFS(GastosDetallados[Importe del cheque],GastosDetallados[Código de contabilidad general],ResumenDeGastosMensuales[[#This Row],[Código de contabilidad general]],GastosDetallados[Fecha de la factura],\">=\"&G$3,GastosDetallados[Fecha de la factura],\"<=\"&G$4)+SUMIFS(Otros[Importe del cheque],Otros[Código de contabilidad general],ResumenDeGastosMensuales[[#This Row],[Código de contabilidad general]],Otros[[Fecha de solicitud del cheque ]],\">=\"&DATEVALUE(\" 1 \"&ResumenDeGastosMensuales[[#Headers],[Enero]]&_YEAR),Otros[[Fecha de solicitud del cheque ]],\"<=\"&G$4)","v":{"v":0,"d":"0.00 €"}},{"$f":"SUMIFS(GastosDetallados[Importe del cheque],GastosDetallados[Código de contabilidad general],ResumenDeGastosMensuales[[#This Row],[Código de contabilidad general]],GastosDetallados[Fecha de la factura],\">=\"&H$3,GastosDetallados[Fecha de la factura],\"<=\"&H$4)+SUMIFS(Otros[Importe del cheque],Otros[Código de contabilidad general],ResumenDeGastosMensuales[[#This Row],[Código de contabilidad general]],Otros[[Fecha de solicitud del cheque ]],\">=\"&DATEVALUE(\" 1 \"&ResumenDeGastosMensuales[[#Headers],[Enero]]&_YEAR),Otros[[Fecha de solicitud del cheque ]],\"<=\"&H$4)","v":{"v":0,"d":"0.00 €"}},{"$f":"SUMIFS(GastosDetallados[Importe del cheque],GastosDetallados[Código de contabilidad general],ResumenDeGastosMensuales[[#This Row],[Código de contabilidad general]],GastosDetallados[Fecha de la factura],\">=\"&I$3,GastosDetallados[Fecha de la factura],\"<=\"&I$4)+SUMIFS(Otros[Importe del cheque],Otros[Código de contabilidad general],ResumenDeGastosMensuales[[#This Row],[Código de contabilidad general]],Otros[[Fecha de solicitud del cheque ]],\">=\"&DATEVALUE(\" 1 \"&ResumenDeGastosMensuales[[#Headers],[Enero]]&_YEAR),Otros[[Fecha de solicitud del cheque ]],\"<=\"&I$4)","v":{"v":0,"d":"0.00 €"}},{"$f":"SUMIFS(GastosDetallados[Importe del cheque],GastosDetallados[Código de contabilidad general],ResumenDeGastosMensuales[[#This Row],[Código de contabilidad general]],GastosDetallados[Fecha de la factura],\">=\"&J$3,GastosDetallados[Fecha de la factura],\"<=\"&J$4)+SUMIFS(Otros[Importe del cheque],Otros[Código de contabilidad general],ResumenDeGastosMensuales[[#This Row],[Código de contabilidad general]],Otros[[Fecha de solicitud del cheque ]],\">=\"&DATEVALUE(\" 1 \"&ResumenDeGastosMensuales[[#Headers],[Enero]]&_YEAR),Otros[[Fecha de solicitud del cheque ]],\"<=\"&J$4)","v":{"v":0,"d":"0.00 €"}},{"$f":"SUMIFS(GastosDetallados[Importe del cheque],GastosDetallados[Código de contabilidad general],ResumenDeGastosMensuales[[#This Row],[Código de contabilidad general]],GastosDetallados[Fecha de la factura],\">=\"&K$3,GastosDetallados[Fecha de la factura],\"<=\"&K$4)+SUMIFS(Otros[Importe del cheque],Otros[Código de contabilidad general],ResumenDeGastosMensuales[[#This Row],[Código de contabilidad general]],Otros[[Fecha de solicitud del cheque ]],\">=\"&DATEVALUE(\" 1 \"&ResumenDeGastosMensuales[[#Headers],[Enero]]&_YEAR),Otros[[Fecha de solicitud del cheque ]],\"<=\"&K$4)","v":{"v":0,"d":"0.00 €"}},{"$f":"SUMIFS(GastosDetallados[Importe del cheque],GastosDetallados[Código de contabilidad general],ResumenDeGastosMensuales[[#This Row],[Código de contabilidad general]],GastosDetallados[Fecha de la factura],\">=\"&L$3,GastosDetallados[Fecha de la factura],\"<=\"&L$4)+SUMIFS(Otros[Importe del cheque],Otros[Código de contabilidad general],ResumenDeGastosMensuales[[#This Row],[Código de contabilidad general]],Otros[[Fecha de solicitud del cheque ]],\">=\"&DATEVALUE(\" 1 \"&ResumenDeGastosMensuales[[#Headers],[Enero]]&_YEAR),Otros[[Fecha de solicitud del cheque ]],\"<=\"&L$4)","v":{"v":0,"d":"0.00 €"}},{"$f":"SUMIFS(GastosDetallados[Importe del cheque],GastosDetallados[Código de contabilidad general],ResumenDeGastosMensuales[[#This Row],[Código de contabilidad general]],GastosDetallados[Fecha de la factura],\">=\"&M$3,GastosDetallados[Fecha de la factura],\"<=\"&M$4)+SUMIFS(Otros[Importe del cheque],Otros[Código de contabilidad general],ResumenDeGastosMensuales[[#This Row],[Código de contabilidad general]],Otros[[Fecha de solicitud del cheque ]],\">=\"&DATEVALUE(\" 1 \"&ResumenDeGastosMensuales[[#Headers],[Enero]]&_YEAR),Otros[[Fecha de solicitud del cheque ]],\"<=\"&M$4)","v":{"v":0,"d":"0.00 €"}},{"$f":"SUMIFS(GastosDetallados[Importe del cheque],GastosDetallados[Código de contabilidad general],ResumenDeGastosMensuales[[#This Row],[Código de contabilidad general]],GastosDetallados[Fecha de la factura],\">=\"&N$3,GastosDetallados[Fecha de la factura],\"<=\"&N$4)+SUMIFS(Otros[Importe del cheque],Otros[Código de contabilidad general],ResumenDeGastosMensuales[[#This Row],[Código de contabilidad general]],Otros[[Fecha de solicitud del cheque ]],\">=\"&DATEVALUE(\" 1 \"&ResumenDeGastosMensuales[[#Headers],[Enero]]&_YEAR),Otros[[Fecha de solicitud del cheque ]],\"<=\"&N$4)","v":{"v":0,"d":"0.00 €"}},{"$f":"SUMIFS(GastosDetallados[Importe del cheque],GastosDetallados[Código de contabilidad general],ResumenDeGastosMensuales[[#This Row],[Código de contabilidad general]],GastosDetallados[Fecha de la factura],\">=\"&O$3,GastosDetallados[Fecha de la factura],\"<=\"&O$4)+SUMIFS(Otros[Importe del cheque],Otros[Código de contabilidad general],ResumenDeGastosMensuales[[#This Row],[Código de contabilidad general]],Otros[[Fecha de solicitud del cheque ]],\">=\"&DATEVALUE(\" 1 \"&ResumenDeGastosMensuales[[#Headers],[Enero]]&_YEAR),Otros[[Fecha de solicitud del cheque ]],\"<=\"&O$4)","v":{"v":0,"d":"0.00 €"}},{"$f":"SUM(ResumenDeGastosMensuales[[#This Row],[Enero]:[Diciembre]])","v":{"v":0,"d":"0.00 €"}}]
[null,4000,"Costes de servidores",{"$f":"SUMIFS(GastosDetallados[Importe del cheque],GastosDetallados[Código de contabilidad general],ResumenDeGastosMensuales[[#This Row],[Código de contabilidad general]],GastosDetallados[Fecha de la factura],\">=\"&D$3,GastosDetallados[Fecha de la factura],\"<=\"&D$4)+SUMIFS(Otros[Importe del cheque],Otros[Código de contabilidad general],ResumenDeGastosMensuales[[#This Row],[Código de contabilidad general]],Otros[[Fecha de solicitud del cheque ]],\">=\"&DATEVALUE(\" 1 \"&ResumenDeGastosMensuales[[#Headers],[Enero]]&_YEAR),Otros[[Fecha de solicitud del cheque ]],\"<=\"&D$4)","v":{"v":0,"d":"0.00 €"}},{"$f":"SUMIFS(GastosDetallados[Importe del cheque],GastosDetallados[Código de contabilidad general],ResumenDeGastosMensuales[[#This Row],[Código de contabilidad general]],GastosDetallados[Fecha de la factura],\">=\"&E$3,GastosDetallados[Fecha de la factura],\"<=\"&E$4)+SUMIFS(Otros[Importe del cheque],Otros[Código de contabilidad general],ResumenDeGastosMensuales[[#This Row],[Código de contabilidad general]],Otros[[Fecha de solicitud del cheque ]],\">=\"&DATEVALUE(\" 1 \"&ResumenDeGastosMensuales[[#Headers],[Enero]]&_YEAR),Otros[[Fecha de solicitud del cheque ]],\"<=\"&E$4)","v":{"v":0,"d":"0.00 €"}},{"$f":"SUMIFS(GastosDetallados[Importe del cheque],GastosDetallados[Código de contabilidad general],ResumenDeGastosMensuales[[#This Row],[Código de contabilidad general]],GastosDetallados[Fecha de la factura],\">=\"&F$3,GastosDetallados[Fecha de la factura],\"<=\"&F$4)+SUMIFS(Otros[Importe del cheque],Otros[Código de contabilidad general],ResumenDeGastosMensuales[[#This Row],[Código de contabilidad general]],Otros[[Fecha de solicitud del cheque ]],\">=\"&DATEVALUE(\" 1 \"&ResumenDeGastosMensuales[[#Headers],[Enero]]&_YEAR),Otros[[Fecha de solicitud del cheque ]],\"<=\"&F$4)","v":{"v":0,"d":"0.00 €"}},{"$f":"SUMIFS(GastosDetallados[Importe del cheque],GastosDetallados[Código de contabilidad general],ResumenDeGastosMensuales[[#This Row],[Código de contabilidad general]],GastosDetallados[Fecha de la factura],\">=\"&G$3,GastosDetallados[Fecha de la factura],\"<=\"&G$4)+SUMIFS(Otros[Importe del cheque],Otros[Código de contabilidad general],ResumenDeGastosMensuales[[#This Row],[Código de contabilidad general]],Otros[[Fecha de solicitud del cheque ]],\">=\"&DATEVALUE(\" 1 \"&ResumenDeGastosMensuales[[#Headers],[Enero]]&_YEAR),Otros[[Fecha de solicitud del cheque ]],\"<=\"&G$4)","v":{"v":0,"d":"0.00 €"}},{"$f":"SUMIFS(GastosDetallados[Importe del cheque],GastosDetallados[Código de contabilidad general],ResumenDeGastosMensuales[[#This Row],[Código de contabilidad general]],GastosDetallados[Fecha de la factura],\">=\"&H$3,GastosDetallados[Fecha de la factura],\"<=\"&H$4)+SUMIFS(Otros[Importe del cheque],Otros[Código de contabilidad general],ResumenDeGastosMensuales[[#This Row],[Código de contabilidad general]],Otros[[Fecha de solicitud del cheque ]],\">=\"&DATEVALUE(\" 1 \"&ResumenDeGastosMensuales[[#Headers],[Enero]]&_YEAR),Otros[[Fecha de solicitud del cheque ]],\"<=\"&H$4)","v":{"v":0,"d":"0.00 €"}},{"$f":"SUMIFS(GastosDetallados[Importe del cheque],GastosDetallados[Código de contabilidad general],ResumenDeGastosMensuales[[#This Row],[Código de contabilidad general]],GastosDetallados[Fecha de la factura],\">=\"&I$3,GastosDetallados[Fecha de la factura],\"<=\"&I$4)+SUMIFS(Otros[Importe del cheque],Otros[Código de contabilidad general],ResumenDeGastosMensuales[[#This Row],[Código de contabilidad general]],Otros[[Fecha de solicitud del cheque ]],\">=\"&DATEVALUE(\" 1 \"&ResumenDeGastosMensuales[[#Headers],[Enero]]&_YEAR),Otros[[Fecha de solicitud del cheque ]],\"<=\"&I$4)","v":{"v":0,"d":"0.00 €"}},{"$f":"SUMIFS(GastosDetallados[Importe del cheque],GastosDetallados[Código de contabilidad general],ResumenDeGastosMensuales[[#This Row],[Código de contabilidad general]],GastosDetallados[Fecha de la factura],\">=\"&J$3,GastosDetallados[Fecha de la factura],\"<=\"&J$4)+SUMIFS(Otros[Importe del cheque],Otros[Código de contabilidad general],ResumenDeGastosMensuales[[#This Row],[Código de contabilidad general]],Otros[[Fecha de solicitud del cheque ]],\">=\"&DATEVALUE(\" 1 \"&ResumenDeGastosMensuales[[#Headers],[Enero]]&_YEAR),Otros[[Fecha de solicitud del cheque ]],\"<=\"&J$4)","v":{"v":0,"d":"0.00 €"}},{"$f":"SUMIFS(GastosDetallados[Importe del cheque],GastosDetallados[Código de contabilidad general],ResumenDeGastosMensuales[[#This Row],[Código de contabilidad general]],GastosDetallados[Fecha de la factura],\">=\"&K$3,GastosDetallados[Fecha de la factura],\"<=\"&K$4)+SUMIFS(Otros[Importe del cheque],Otros[Código de contabilidad general],ResumenDeGastosMensuales[[#This Row],[Código de contabilidad general]],Otros[[Fecha de solicitud del cheque ]],\">=\"&DATEVALUE(\" 1 \"&ResumenDeGastosMensuales[[#Headers],[Enero]]&_YEAR),Otros[[Fecha de solicitud del cheque ]],\"<=\"&K$4)","v":{"v":0,"d":"0.00 €"}},{"$f":"SUMIFS(GastosDetallados[Importe del cheque],GastosDetallados[Código de contabilidad general],ResumenDeGastosMensuales[[#This Row],[Código de contabilidad general]],GastosDetallados[Fecha de la factura],\">=\"&L$3,GastosDetallados[Fecha de la factura],\"<=\"&L$4)+SUMIFS(Otros[Importe del cheque],Otros[Código de contabilidad general],ResumenDeGastosMensuales[[#This Row],[Código de contabilidad general]],Otros[[Fecha de solicitud del cheque ]],\">=\"&DATEVALUE(\" 1 \"&ResumenDeGastosMensuales[[#Headers],[Enero]]&_YEAR),Otros[[Fecha de solicitud del cheque ]],\"<=\"&L$4)","v":{"v":0,"d":"0.00 €"}},{"$f":"SUMIFS(GastosDetallados[Importe del cheque],GastosDetallados[Código de contabilidad general],ResumenDeGastosMensuales[[#This Row],[Código de contabilidad general]],GastosDetallados[Fecha de la factura],\">=\"&M$3,GastosDetallados[Fecha de la factura],\"<=\"&M$4)+SUMIFS(Otros[Importe del cheque],Otros[Código de contabilidad general],ResumenDeGastosMensuales[[#This Row],[Código de contabilidad general]],Otros[[Fecha de solicitud del cheque ]],\">=\"&DATEVALUE(\" 1 \"&ResumenDeGastosMensuales[[#Headers],[Enero]]&_YEAR),Otros[[Fecha de solicitud del cheque ]],\"<=\"&M$4)","v":{"v":0,"d":"0.00 €"}},{"$f":"SUMIFS(GastosDetallados[Importe del cheque],GastosDetallados[Código de contabilidad general],ResumenDeGastosMensuales[[#This Row],[Código de contabilidad general]],GastosDetallados[Fecha de la factura],\">=\"&N$3,GastosDetallados[Fecha de la factura],\"<=\"&N$4)+SUMIFS(Otros[Importe del cheque],Otros[Código de contabilidad general],ResumenDeGastosMensuales[[#This Row],[Código de contabilidad general]],Otros[[Fecha de solicitud del cheque ]],\">=\"&DATEVALUE(\" 1 \"&ResumenDeGastosMensuales[[#Headers],[Enero]]&_YEAR),Otros[[Fecha de solicitud del cheque ]],\"<=\"&N$4)","v":{"v":0,"d":"0.00 €"}},{"$f":"SUMIFS(GastosDetallados[Importe del cheque],GastosDetallados[Código de contabilidad general],ResumenDeGastosMensuales[[#This Row],[Código de contabilidad general]],GastosDetallados[Fecha de la factura],\">=\"&O$3,GastosDetallados[Fecha de la factura],\"<=\"&O$4)+SUMIFS(Otros[Importe del cheque],Otros[Código de contabilidad general],ResumenDeGastosMensuales[[#This Row],[Código de contabilidad general]],Otros[[Fecha de solicitud del cheque ]],\">=\"&DATEVALUE(\" 1 \"&ResumenDeGastosMensuales[[#Headers],[Enero]]&_YEAR),Otros[[Fecha de solicitud del cheque ]],\"<=\"&O$4)","v":{"v":0,"d":"0.00 €"}},{"$f":"SUM(ResumenDeGastosMensuales[[#This Row],[Enero]:[Diciembre]])","v":{"v":0,"d":"0.00 €"}}]
[null,5000,"Suministros",{"$f":"SUMIFS(GastosDetallados[Importe del cheque],GastosDetallados[Código de contabilidad general],ResumenDeGastosMensuales[[#This Row],[Código de contabilidad general]],GastosDetallados[Fecha de la factura],\">=\"&D$3,GastosDetallados[Fecha de la factura],\"<=\"&D$4)+SUMIFS(Otros[Importe del cheque],Otros[Código de contabilidad general],ResumenDeGastosMensuales[[#This Row],[Código de contabilidad general]],Otros[[Fecha de solicitud del cheque ]],\">=\"&DATEVALUE(\" 1 \"&ResumenDeGastosMensuales[[#Headers],[Enero]]&_YEAR),Otros[[Fecha de solicitud del cheque ]],\"<=\"&D$4)","v":{"v":0,"d":"0.00 €"}},{"$f":"SUMIFS(GastosDetallados[Importe del cheque],GastosDetallados[Código de contabilidad general],ResumenDeGastosMensuales[[#This Row],[Código de contabilidad general]],GastosDetallados[Fecha de la factura],\">=\"&E$3,GastosDetallados[Fecha de la factura],\"<=\"&E$4)+SUMIFS(Otros[Importe del cheque],Otros[Código de contabilidad general],ResumenDeGastosMensuales[[#This Row],[Código de contabilidad general]],Otros[[Fecha de solicitud del cheque ]],\">=\"&DATEVALUE(\" 1 \"&ResumenDeGastosMensuales[[#Headers],[Enero]]&_YEAR),Otros[[Fecha de solicitud del cheque ]],\"<=\"&E$4)","v":{"v":0,"d":"0.00 €"}},{"$f":"SUMIFS(GastosDetallados[Importe del cheque],GastosDetallados[Código de contabilidad general],ResumenDeGastosMensuales[[#This Row],[Código de contabilidad general]],GastosDetallados[Fecha de la factura],\">=\"&F$3,GastosDetallados[Fecha de la factura],\"<=\"&F$4)+SUMIFS(Otros[Importe del cheque],Otros[Código de contabilidad general],ResumenDeGastosMensuales[[#This Row],[Código de contabilidad general]],Otros[[Fecha de solicitud del cheque ]],\">=\"&DATEVALUE(\" 1 \"&ResumenDeGastosMensuales[[#Headers],[Enero]]&_YEAR),Otros[[Fecha de solicitud del cheque ]],\"<=\"&F$4)","v":{"v":0,"d":"0.00 €"}},{"$f":"SUMIFS(GastosDetallados[Importe del cheque],GastosDetallados[Código de contabilidad general],ResumenDeGastosMensuales[[#This Row],[Código de contabilidad general]],GastosDetallados[Fecha de la factura],\">=\"&G$3,GastosDetallados[Fecha de la factura],\"<=\"&G$4)+SUMIFS(Otros[Importe del cheque],Otros[Código de contabilidad general],ResumenDeGastosMensuales[[#This Row],[Código de contabilidad general]],Otros[[Fecha de solicitud del cheque ]],\">=\"&DATEVALUE(\" 1 \"&ResumenDeGastosMensuales[[#Headers],[Enero]]&_YEAR),Otros[[Fecha de solicitud del cheque ]],\"<=\"&G$4)","v":{"v":0,"d":"0.00 €"}},{"$f":"SUMIFS(GastosDetallados[Importe del cheque],GastosDetallados[Código de contabilidad general],ResumenDeGastosMensuales[[#This Row],[Código de contabilidad general]],GastosDetallados[Fecha de la factura],\">=\"&H$3,GastosDetallados[Fecha de la factura],\"<=\"&H$4)+SUMIFS(Otros[Importe del cheque],Otros[Código de contabilidad general],ResumenDeGastosMensuales[[#This Row],[Código de contabilidad general]],Otros[[Fecha de solicitud del cheque ]],\">=\"&DATEVALUE(\" 1 \"&ResumenDeGastosMensuales[[#Headers],[Enero]]&_YEAR),Otros[[Fecha de solicitud del cheque ]],\"<=\"&H$4)","v":{"v":0,"d":"0.00 €"}},{"$f":"SUMIFS(GastosDetallados[Importe del cheque],GastosDetallados[Código de contabilidad general],ResumenDeGastosMensuales[[#This Row],[Código de contabilidad general]],GastosDetallados[Fecha de la factura],\">=\"&I$3,GastosDetallados[Fecha de la factura],\"<=\"&I$4)+SUMIFS(Otros[Importe del cheque],Otros[Código de contabilidad general],ResumenDeGastosMensuales[[#This Row],[Código de contabilidad general]],Otros[[Fecha de solicitud del cheque ]],\">=\"&DATEVALUE(\" 1 \"&ResumenDeGastosMensuales[[#Headers],[Enero]]&_YEAR),Otros[[Fecha de solicitud del cheque ]],\"<=\"&I$4)","v":{"v":0,"d":"0.00 €"}},{"$f":"SUMIFS(GastosDetallados[Importe del cheque],GastosDetallados[Código de contabilidad general],ResumenDeGastosMensuales[[#This Row],[Código de contabilidad general]],GastosDetallados[Fecha de la factura],\">=\"&J$3,GastosDetallados[Fecha de la factura],\"<=\"&J$4)+SUMIFS(Otros[Importe del cheque],Otros[Código de contabilidad general],ResumenDeGastosMensuales[[#This Row],[Código de contabilidad general]],Otros[[Fecha de solicitud del cheque ]],\">=\"&DATEVALUE(\" 1 \"&ResumenDeGastosMensuales[[#Headers],[Enero]]&_YEAR),Otros[[Fecha de solicitud del cheque ]],\"<=\"&J$4)","v":{"v":0,"d":"0.00 €"}},{"$f":"SUMIFS(GastosDetallados[Importe del cheque],GastosDetallados[Código de contabilidad general],ResumenDeGastosMensuales[[#This Row],[Código de contabilidad general]],GastosDetallados[Fecha de la factura],\">=\"&K$3,GastosDetallados[Fecha de la factura],\"<=\"&K$4)+SUMIFS(Otros[Importe del cheque],Otros[Código de contabilidad general],ResumenDeGastosMensuales[[#This Row],[Código de contabilidad general]],Otros[[Fecha de solicitud del cheque ]],\">=\"&DATEVALUE(\" 1 \"&ResumenDeGastosMensuales[[#Headers],[Enero]]&_YEAR),Otros[[Fecha de solicitud del cheque ]],\"<=\"&K$4)","v":{"v":0,"d":"0.00 €"}},{"$f":"SUMIFS(GastosDetallados[Importe del cheque],GastosDetallados[Código de contabilidad general],ResumenDeGastosMensuales[[#This Row],[Código de contabilidad general]],GastosDetallados[Fecha de la factura],\">=\"&L$3,GastosDetallados[Fecha de la factura],\"<=\"&L$4)+SUMIFS(Otros[Importe del cheque],Otros[Código de contabilidad general],ResumenDeGastosMensuales[[#This Row],[Código de contabilidad general]],Otros[[Fecha de solicitud del cheque ]],\">=\"&DATEVALUE(\" 1 \"&ResumenDeGastosMensuales[[#Headers],[Enero]]&_YEAR),Otros[[Fecha de solicitud del cheque ]],\"<=\"&L$4)","v":{"v":0,"d":"0.00 €"}},{"$f":"SUMIFS(GastosDetallados[Importe del cheque],GastosDetallados[Código de contabilidad general],ResumenDeGastosMensuales[[#This Row],[Código de contabilidad general]],GastosDetallados[Fecha de la factura],\">=\"&M$3,GastosDetallados[Fecha de la factura],\"<=\"&M$4)+SUMIFS(Otros[Importe del cheque],Otros[Código de contabilidad general],ResumenDeGastosMensuales[[#This Row],[Código de contabilidad general]],Otros[[Fecha de solicitud del cheque ]],\">=\"&DATEVALUE(\" 1 \"&ResumenDeGastosMensuales[[#Headers],[Enero]]&_YEAR),Otros[[Fecha de solicitud del cheque ]],\"<=\"&M$4)","v":{"v":0,"d":"0.00 €"}},{"$f":"SUMIFS(GastosDetallados[Importe del cheque],GastosDetallados[Código de contabilidad general],ResumenDeGastosMensuales[[#This Row],[Código de contabilidad general]],GastosDetallados[Fecha de la factura],\">=\"&N$3,GastosDetallados[Fecha de la factura],\"<=\"&N$4)+SUMIFS(Otros[Importe del cheque],Otros[Código de contabilidad general],ResumenDeGastosMensuales[[#This Row],[Código de contabilidad general]],Otros[[Fecha de solicitud del cheque ]],\">=\"&DATEVALUE(\" 1 \"&ResumenDeGastosMensuales[[#Headers],[Enero]]&_YEAR),Otros[[Fecha de solicitud del cheque ]],\"<=\"&N$4)","v":{"v":0,"d":"0.00 €"}},{"$f":"SUMIFS(GastosDetallados[Importe del cheque],GastosDetallados[Código de contabilidad general],ResumenDeGastosMensuales[[#This Row],[Código de contabilidad general]],GastosDetallados[Fecha de la factura],\">=\"&O$3,GastosDetallados[Fecha de la factura],\"<=\"&O$4)+SUMIFS(Otros[Importe del cheque],Otros[Código de contabilidad general],ResumenDeGastosMensuales[[#This Row],[Código de contabilidad general]],Otros[[Fecha de solicitud del cheque ]],\">=\"&DATEVALUE(\" 1 \"&ResumenDeGastosMensuales[[#Headers],[Enero]]&_YEAR),Otros[[Fecha de solicitud del cheque ]],\"<=\"&O$4)","v":{"v":0,"d":"0.00 €"}},{"$f":"SUM(ResumenDeGastosMensuales[[#This Row],[Enero]:[Diciembre]])","v":{"v":0,"d":"0.00 €"}}]
[null,6000,"Gastos del cliente",{"$f":"SUMIFS(GastosDetallados[Importe del cheque],GastosDetallados[Código de contabilidad general],ResumenDeGastosMensuales[[#This Row],[Código de contabilidad general]],GastosDetallados[Fecha de la factura],\">=\"&D$3,GastosDetallados[Fecha de la factura],\"<=\"&D$4)+SUMIFS(Otros[Importe del cheque],Otros[Código de contabilidad general],ResumenDeGastosMensuales[[#This Row],[Código de contabilidad general]],Otros[[Fecha de solicitud del cheque ]],\">=\"&DATEVALUE(\" 1 \"&ResumenDeGastosMensuales[[#Headers],[Enero]]&_YEAR),Otros[[Fecha de solicitud del cheque ]],\"<=\"&D$4)","v":{"v":0,"d":"0.00 €"}},{"$f":"SUMIFS(GastosDetallados[Importe del cheque],GastosDetallados[Código de contabilidad general],ResumenDeGastosMensuales[[#This Row],[Código de contabilidad general]],GastosDetallados[Fecha de la factura],\">=\"&E$3,GastosDetallados[Fecha de la factura],\"<=\"&E$4)+SUMIFS(Otros[Importe del cheque],Otros[Código de contabilidad general],ResumenDeGastosMensuales[[#This Row],[Código de contabilidad general]],Otros[[Fecha de solicitud del cheque ]],\">=\"&DATEVALUE(\" 1 \"&ResumenDeGastosMensuales[[#Headers],[Enero]]&_YEAR),Otros[[Fecha de solicitud del cheque ]],\"<=\"&E$4)","v":{"v":0,"d":"0.00 €"}},{"$f":"SUMIFS(GastosDetallados[Importe del cheque],GastosDetallados[Código de contabilidad general],ResumenDeGastosMensuales[[#This Row],[Código de contabilidad general]],GastosDetallados[Fecha de la factura],\">=\"&F$3,GastosDetallados[Fecha de la factura],\"<=\"&F$4)+SUMIFS(Otros[Importe del cheque],Otros[Código de contabilidad general],ResumenDeGastosMensuales[[#This Row],[Código de contabilidad general]],Otros[[Fecha de solicitud del cheque ]],\">=\"&DATEVALUE(\" 1 \"&ResumenDeGastosMensuales[[#Headers],[Enero]]&_YEAR),Otros[[Fecha de solicitud del cheque ]],\"<=\"&F$4)","v":{"v":0,"d":"0.00 €"}},{"$f":"SUMIFS(GastosDetallados[Importe del cheque],GastosDetallados[Código de contabilidad general],ResumenDeGastosMensuales[[#This Row],[Código de contabilidad general]],GastosDetallados[Fecha de la factura],\">=\"&G$3,GastosDetallados[Fecha de la factura],\"<=\"&G$4)+SUMIFS(Otros[Importe del cheque],Otros[Código de contabilidad general],ResumenDeGastosMensuales[[#This Row],[Código de contabilidad general]],Otros[[Fecha de solicitud del cheque ]],\">=\"&DATEVALUE(\" 1 \"&ResumenDeGastosMensuales[[#Headers],[Enero]]&_YEAR),Otros[[Fecha de solicitud del cheque ]],\"<=\"&G$4)","v":{"v":0,"d":"0.00 €"}},{"$f":"SUMIFS(GastosDetallados[Importe del cheque],GastosDetallados[Código de contabilidad general],ResumenDeGastosMensuales[[#This Row],[Código de contabilidad general]],GastosDetallados[Fecha de la factura],\">=\"&H$3,GastosDetallados[Fecha de la factura],\"<=\"&H$4)+SUMIFS(Otros[Importe del cheque],Otros[Código de contabilidad general],ResumenDeGastosMensuales[[#This Row],[Código de contabilidad general]],Otros[[Fecha de solicitud del cheque ]],\">=\"&DATEVALUE(\" 1 \"&ResumenDeGastosMensuales[[#Headers],[Enero]]&_YEAR),Otros[[Fecha de solicitud del cheque ]],\"<=\"&H$4)","v":{"v":0,"d":"0.00 €"}},{"$f":"SUMIFS(GastosDetallados[Importe del cheque],GastosDetallados[Código de contabilidad general],ResumenDeGastosMensuales[[#This Row],[Código de contabilidad general]],GastosDetallados[Fecha de la factura],\">=\"&I$3,GastosDetallados[Fecha de la factura],\"<=\"&I$4)+SUMIFS(Otros[Importe del cheque],Otros[Código de contabilidad general],ResumenDeGastosMensuales[[#This Row],[Código de contabilidad general]],Otros[[Fecha de solicitud del cheque ]],\">=\"&DATEVALUE(\" 1 \"&ResumenDeGastosMensuales[[#Headers],[Enero]]&_YEAR),Otros[[Fecha de solicitud del cheque ]],\"<=\"&I$4)","v":{"v":0,"d":"0.00 €"}},{"$f":"SUMIFS(GastosDetallados[Importe del cheque],GastosDetallados[Código de contabilidad general],ResumenDeGastosMensuales[[#This Row],[Código de contabilidad general]],GastosDetallados[Fecha de la factura],\">=\"&J$3,GastosDetallados[Fecha de la factura],\"<=\"&J$4)+SUMIFS(Otros[Importe del cheque],Otros[Código de contabilidad general],ResumenDeGastosMensuales[[#This Row],[Código de contabilidad general]],Otros[[Fecha de solicitud del cheque ]],\">=\"&DATEVALUE(\" 1 \"&ResumenDeGastosMensuales[[#Headers],[Enero]]&_YEAR),Otros[[Fecha de solicitud del cheque ]],\"<=\"&J$4)","v":{"v":0,"d":"0.00 €"}},{"$f":"SUMIFS(GastosDetallados[Importe del cheque],GastosDetallados[Código de contabilidad general],ResumenDeGastosMensuales[[#This Row],[Código de contabilidad general]],GastosDetallados[Fecha de la factura],\">=\"&K$3,GastosDetallados[Fecha de la factura],\"<=\"&K$4)+SUMIFS(Otros[Importe del cheque],Otros[Código de contabilidad general],ResumenDeGastosMensuales[[#This Row],[Código de contabilidad general]],Otros[[Fecha de solicitud del cheque ]],\">=\"&DATEVALUE(\" 1 \"&ResumenDeGastosMensuales[[#Headers],[Enero]]&_YEAR),Otros[[Fecha de solicitud del cheque ]],\"<=\"&K$4)","v":{"v":0,"d":"0.00 €"}},{"$f":"SUMIFS(GastosDetallados[Importe del cheque],GastosDetallados[Código de contabilidad general],ResumenDeGastosMensuales[[#This Row],[Código de contabilidad general]],GastosDetallados[Fecha de la factura],\">=\"&L$3,GastosDetallados[Fecha de la factura],\"<=\"&L$4)+SUMIFS(Otros[Importe del cheque],Otros[Código de contabilidad general],ResumenDeGastosMensuales[[#This Row],[Código de contabilidad general]],Otros[[Fecha de solicitud del cheque ]],\">=\"&DATEVALUE(\" 1 \"&ResumenDeGastosMensuales[[#Headers],[Enero]]&_YEAR),Otros[[Fecha de solicitud del cheque ]],\"<=\"&L$4)","v":{"v":0,"d":"0.00 €"}},{"$f":"SUMIFS(GastosDetallados[Importe del cheque],GastosDetallados[Código de contabilidad general],ResumenDeGastosMensuales[[#This Row],[Código de contabilidad general]],GastosDetallados[Fecha de la factura],\">=\"&M$3,GastosDetallados[Fecha de la factura],\"<=\"&M$4)+SUMIFS(Otros[Importe del cheque],Otros[Código de contabilidad general],ResumenDeGastosMensuales[[#This Row],[Código de contabilidad general]],Otros[[Fecha de solicitud del cheque ]],\">=\"&DATEVALUE(\" 1 \"&ResumenDeGastosMensuales[[#Headers],[Enero]]&_YEAR),Otros[[Fecha de solicitud del cheque ]],\"<=\"&M$4)","v":{"v":0,"d":"0.00 €"}},{"$f":"SUMIFS(GastosDetallados[Importe del cheque],GastosDetallados[Código de contabilidad general],ResumenDeGastosMensuales[[#This Row],[Código de contabilidad general]],GastosDetallados[Fecha de la factura],\">=\"&N$3,GastosDetallados[Fecha de la factura],\"<=\"&N$4)+SUMIFS(Otros[Importe del cheque],Otros[Código de contabilidad general],ResumenDeGastosMensuales[[#This Row],[Código de contabilidad general]],Otros[[Fecha de solicitud del cheque ]],\">=\"&DATEVALUE(\" 1 \"&ResumenDeGastosMensuales[[#Headers],[Enero]]&_YEAR),Otros[[Fecha de solicitud del cheque ]],\"<=\"&N$4)","v":{"v":0,"d":"0.00 €"}},{"$f":"SUMIFS(GastosDetallados[Importe del cheque],GastosDetallados[Código de contabilidad general],ResumenDeGastosMensuales[[#This Row],[Código de contabilidad general]],GastosDetallados[Fecha de la factura],\">=\"&O$3,GastosDetallados[Fecha de la factura],\"<=\"&O$4)+SUMIFS(Otros[Importe del cheque],Otros[Código de contabilidad general],ResumenDeGastosMensuales[[#This Row],[Código de contabilidad general]],Otros[[Fecha de solicitud del cheque ]],\">=\"&DATEVALUE(\" 1 \"&ResumenDeGastosMensuales[[#Headers],[Enero]]&_YEAR),Otros[[Fecha de solicitud del cheque ]],\"<=\"&O$4)","v":{"v":0,"d":"0.00 €"}},{"$f":"SUM(ResumenDeGastosMensuales[[#This Row],[Enero]:[Diciembre]])","v":{"v":0,"d":"0.00 €"}}]
[null,7000,"Ordenadores",{"$f":"SUMIFS(GastosDetallados[Importe del cheque],GastosDetallados[Código de contabilidad general],ResumenDeGastosMensuales[[#This Row],[Código de contabilidad general]],GastosDetallados[Fecha de la factura],\">=\"&D$3,GastosDetallados[Fecha de la factura],\"<=\"&D$4)+SUMIFS(Otros[Importe del cheque],Otros[Código de contabilidad general],ResumenDeGastosMensuales[[#This Row],[Código de contabilidad general]],Otros[[Fecha de solicitud del cheque ]],\">=\"&DATEVALUE(\" 1 \"&ResumenDeGastosMensuales[[#Headers],[Enero]]&_YEAR),Otros[[Fecha de solicitud del cheque ]],\"<=\"&D$4)","v":{"v":0,"d":"0.00 €"}},{"$f":"SUMIFS(GastosDetallados[Importe del cheque],GastosDetallados[Código de contabilidad general],ResumenDeGastosMensuales[[#This Row],[Código de contabilidad general]],GastosDetallados[Fecha de la factura],\">=\"&E$3,GastosDetallados[Fecha de la factura],\"<=\"&E$4)+SUMIFS(Otros[Importe del cheque],Otros[Código de contabilidad general],ResumenDeGastosMensuales[[#This Row],[Código de contabilidad general]],Otros[[Fecha de solicitud del cheque ]],\">=\"&DATEVALUE(\" 1 \"&ResumenDeGastosMensuales[[#Headers],[Enero]]&_YEAR),Otros[[Fecha de solicitud del cheque ]],\"<=\"&E$4)","v":{"v":0,"d":"0.00 €"}},{"$f":"SUMIFS(GastosDetallados[Importe del cheque],GastosDetallados[Código de contabilidad general],ResumenDeGastosMensuales[[#This Row],[Código de contabilidad general]],GastosDetallados[Fecha de la factura],\">=\"&F$3,GastosDetallados[Fecha de la factura],\"<=\"&F$4)+SUMIFS(Otros[Importe del cheque],Otros[Código de contabilidad general],ResumenDeGastosMensuales[[#This Row],[Código de contabilidad general]],Otros[[Fecha de solicitud del cheque ]],\">=\"&DATEVALUE(\" 1 \"&ResumenDeGastosMensuales[[#Headers],[Enero]]&_YEAR),Otros[[Fecha de solicitud del cheque ]],\"<=\"&F$4)","v":{"v":0,"d":"0.00 €"}},{"$f":"SUMIFS(GastosDetallados[Importe del cheque],GastosDetallados[Código de contabilidad general],ResumenDeGastosMensuales[[#This Row],[Código de contabilidad general]],GastosDetallados[Fecha de la factura],\">=\"&G$3,GastosDetallados[Fecha de la factura],\"<=\"&G$4)+SUMIFS(Otros[Importe del cheque],Otros[Código de contabilidad general],ResumenDeGastosMensuales[[#This Row],[Código de contabilidad general]],Otros[[Fecha de solicitud del cheque ]],\">=\"&DATEVALUE(\" 1 \"&ResumenDeGastosMensuales[[#Headers],[Enero]]&_YEAR),Otros[[Fecha de solicitud del cheque ]],\"<=\"&G$4)","v":{"v":0,"d":"0.00 €"}},{"$f":"SUMIFS(GastosDetallados[Importe del cheque],GastosDetallados[Código de contabilidad general],ResumenDeGastosMensuales[[#This Row],[Código de contabilidad general]],GastosDetallados[Fecha de la factura],\">=\"&H$3,GastosDetallados[Fecha de la factura],\"<=\"&H$4)+SUMIFS(Otros[Importe del cheque],Otros[Código de contabilidad general],ResumenDeGastosMensuales[[#This Row],[Código de contabilidad general]],Otros[[Fecha de solicitud del cheque ]],\">=\"&DATEVALUE(\" 1 \"&ResumenDeGastosMensuales[[#Headers],[Enero]]&_YEAR),Otros[[Fecha de solicitud del cheque ]],\"<=\"&H$4)","v":{"v":0,"d":"0.00 €"}},{"$f":"SUMIFS(GastosDetallados[Importe del cheque],GastosDetallados[Código de contabilidad general],ResumenDeGastosMensuales[[#This Row],[Código de contabilidad general]],GastosDetallados[Fecha de la factura],\">=\"&I$3,GastosDetallados[Fecha de la factura],\"<=\"&I$4)+SUMIFS(Otros[Importe del cheque],Otros[Código de contabilidad general],ResumenDeGastosMensuales[[#This Row],[Código de contabilidad general]],Otros[[Fecha de solicitud del cheque ]],\">=\"&DATEVALUE(\" 1 \"&ResumenDeGastosMensuales[[#Headers],[Enero]]&_YEAR),Otros[[Fecha de solicitud del cheque ]],\"<=\"&I$4)","v":{"v":0,"d":"0.00 €"}},{"$f":"SUMIFS(GastosDetallados[Importe del cheque],GastosDetallados[Código de contabilidad general],ResumenDeGastosMensuales[[#This Row],[Código de contabilidad general]],GastosDetallados[Fecha de la factura],\">=\"&J$3,GastosDetallados[Fecha de la factura],\"<=\"&J$4)+SUMIFS(Otros[Importe del cheque],Otros[Código de contabilidad general],ResumenDeGastosMensuales[[#This Row],[Código de contabilidad general]],Otros[[Fecha de solicitud del cheque ]],\">=\"&DATEVALUE(\" 1 \"&ResumenDeGastosMensuales[[#Headers],[Enero]]&_YEAR),Otros[[Fecha de solicitud del cheque ]],\"<=\"&J$4)","v":{"v":0,"d":"0.00 €"}},{"$f":"SUMIFS(GastosDetallados[Importe del cheque],GastosDetallados[Código de contabilidad general],ResumenDeGastosMensuales[[#This Row],[Código de contabilidad general]],GastosDetallados[Fecha de la factura],\">=\"&K$3,GastosDetallados[Fecha de la factura],\"<=\"&K$4)+SUMIFS(Otros[Importe del cheque],Otros[Código de contabilidad general],ResumenDeGastosMensuales[[#This Row],[Código de contabilidad general]],Otros[[Fecha de solicitud del cheque ]],\">=\"&DATEVALUE(\" 1 \"&ResumenDeGastosMensuales[[#Headers],[Enero]]&_YEAR),Otros[[Fecha de solicitud del cheque ]],\"<=\"&K$4)","v":{"v":0,"d":"0.00 €"}},{"$f":"SUMIFS(GastosDetallados[Importe del cheque],GastosDetallados[Código de contabilidad general],ResumenDeGastosMensuales[[#This Row],[Código de contabilidad general]],GastosDetallados[Fecha de la factura],\">=\"&L$3,GastosDetallados[Fecha de la factura],\"<=\"&L$4)+SUMIFS(Otros[Importe del cheque],Otros[Código de contabilidad general],ResumenDeGastosMensuales[[#This Row],[Código de contabilidad general]],Otros[[Fecha de solicitud del cheque ]],\">=\"&DATEVALUE(\" 1 \"&ResumenDeGastosMensuales[[#Headers],[Enero]]&_YEAR),Otros[[Fecha de solicitud del cheque ]],\"<=\"&L$4)","v":{"v":0,"d":"0.00 €"}},{"$f":"SUMIFS(GastosDetallados[Importe del cheque],GastosDetallados[Código de contabilidad general],ResumenDeGastosMensuales[[#This Row],[Código de contabilidad general]],GastosDetallados[Fecha de la factura],\">=\"&M$3,GastosDetallados[Fecha de la factura],\"<=\"&M$4)+SUMIFS(Otros[Importe del cheque],Otros[Código de contabilidad general],ResumenDeGastosMensuales[[#This Row],[Código de contabilidad general]],Otros[[Fecha de solicitud del cheque ]],\">=\"&DATEVALUE(\" 1 \"&ResumenDeGastosMensuales[[#Headers],[Enero]]&_YEAR),Otros[[Fecha de solicitud del cheque ]],\"<=\"&M$4)","v":{"v":0,"d":"0.00 €"}},{"$f":"SUMIFS(GastosDetallados[Importe del cheque],GastosDetallados[Código de contabilidad general],ResumenDeGastosMensuales[[#This Row],[Código de contabilidad general]],GastosDetallados[Fecha de la factura],\">=\"&N$3,GastosDetallados[Fecha de la factura],\"<=\"&N$4)+SUMIFS(Otros[Importe del cheque],Otros[Código de contabilidad general],ResumenDeGastosMensuales[[#This Row],[Código de contabilidad general]],Otros[[Fecha de solicitud del cheque ]],\">=\"&DATEVALUE(\" 1 \"&ResumenDeGastosMensuales[[#Headers],[Enero]]&_YEAR),Otros[[Fecha de solicitud del cheque ]],\"<=\"&N$4)","v":{"v":0,"d":"0.00 €"}},{"$f":"SUMIFS(GastosDetallados[Importe del cheque],GastosDetallados[Código de contabilidad general],ResumenDeGastosMensuales[[#This Row],[Código de contabilidad general]],GastosDetallados[Fecha de la factura],\">=\"&O$3,GastosDetallados[Fecha de la factura],\"<=\"&O$4)+SUMIFS(Otros[Importe del cheque],Otros[Código de contabilidad general],ResumenDeGastosMensuales[[#This Row],[Código de contabilidad general]],Otros[[Fecha de solicitud del cheque ]],\">=\"&DATEVALUE(\" 1 \"&ResumenDeGastosMensuales[[#Headers],[Enero]]&_YEAR),Otros[[Fecha de solicitud del cheque ]],\"<=\"&O$4)","v":{"v":0,"d":"0.00 €"}},{"$f":"SUM(ResumenDeGastosMensuales[[#This Row],[Enero]:[Diciembre]])","v":{"v":0,"d":"0.00 €"}}]
[null,8000,"Plan médico",{"$f":"SUMIFS(GastosDetallados[Importe del cheque],GastosDetallados[Código de contabilidad general],ResumenDeGastosMensuales[[#This Row],[Código de contabilidad general]],GastosDetallados[Fecha de la factura],\">=\"&D$3,GastosDetallados[Fecha de la factura],\"<=\"&D$4)+SUMIFS(Otros[Importe del cheque],Otros[Código de contabilidad general],ResumenDeGastosMensuales[[#This Row],[Código de contabilidad general]],Otros[[Fecha de solicitud del cheque ]],\">=\"&DATEVALUE(\" 1 \"&ResumenDeGastosMensuales[[#Headers],[Enero]]&_YEAR),Otros[[Fecha de solicitud del cheque ]],\"<=\"&D$4)","v":{"v":0,"d":"0.00 €"}},{"$f":"SUMIFS(GastosDetallados[Importe del cheque],GastosDetallados[Código de contabilidad general],ResumenDeGastosMensuales[[#This Row],[Código de contabilidad general]],GastosDetallados[Fecha de la factura],\">=\"&E$3,GastosDetallados[Fecha de la factura],\"<=\"&E$4)+SUMIFS(Otros[Importe del cheque],Otros[Código de contabilidad general],ResumenDeGastosMensuales[[#This Row],[Código de contabilidad general]],Otros[[Fecha de solicitud del cheque ]],\">=\"&DATEVALUE(\" 1 \"&ResumenDeGastosMensuales[[#Headers],[Enero]]&_YEAR),Otros[[Fecha de solicitud del cheque ]],\"<=\"&E$4)","v":{"v":0,"d":"0.00 €"}},{"$f":"SUMIFS(GastosDetallados[Importe del cheque],GastosDetallados[Código de contabilidad general],ResumenDeGastosMensuales[[#This Row],[Código de contabilidad general]],GastosDetallados[Fecha de la factura],\">=\"&F$3,GastosDetallados[Fecha de la factura],\"<=\"&F$4)+SUMIFS(Otros[Importe del cheque],Otros[Código de contabilidad general],ResumenDeGastosMensuales[[#This Row],[Código de contabilidad general]],Otros[[Fecha de solicitud del cheque ]],\">=\"&DATEVALUE(\" 1 \"&ResumenDeGastosMensuales[[#Headers],[Enero]]&_YEAR),Otros[[Fecha de solicitud del cheque ]],\"<=\"&F$4)","v":{"v":0,"d":"0.00 €"}},{"$f":"SUMIFS(GastosDetallados[Importe del cheque],GastosDetallados[Código de contabilidad general],ResumenDeGastosMensuales[[#This Row],[Código de contabilidad general]],GastosDetallados[Fecha de la factura],\">=\"&G$3,GastosDetallados[Fecha de la factura],\"<=\"&G$4)+SUMIFS(Otros[Importe del cheque],Otros[Código de contabilidad general],ResumenDeGastosMensuales[[#This Row],[Código de contabilidad general]],Otros[[Fecha de solicitud del cheque ]],\">=\"&DATEVALUE(\" 1 \"&ResumenDeGastosMensuales[[#Headers],[Enero]]&_YEAR),Otros[[Fecha de solicitud del cheque ]],\"<=\"&G$4)","v":{"v":0,"d":"0.00 €"}},{"$f":"SUMIFS(GastosDetallados[Importe del cheque],GastosDetallados[Código de contabilidad general],ResumenDeGastosMensuales[[#This Row],[Código de contabilidad general]],GastosDetallados[Fecha de la factura],\">=\"&H$3,GastosDetallados[Fecha de la factura],\"<=\"&H$4)+SUMIFS(Otros[Importe del cheque],Otros[Código de contabilidad general],ResumenDeGastosMensuales[[#This Row],[Código de contabilidad general]],Otros[[Fecha de solicitud del cheque ]],\">=\"&DATEVALUE(\" 1 \"&ResumenDeGastosMensuales[[#Headers],[Enero]]&_YEAR),Otros[[Fecha de solicitud del cheque ]],\"<=\"&H$4)","v":{"v":0,"d":"0.00 €"}},{"$f":"SUMIFS(GastosDetallados[Importe del cheque],GastosDetallados[Código de contabilidad general],ResumenDeGastosMensuales[[#This Row],[Código de contabilidad general]],GastosDetallados[Fecha de la factura],\">=\"&I$3,GastosDetallados[Fecha de la factura],\"<=\"&I$4)+SUMIFS(Otros[Importe del cheque],Otros[Código de contabilidad general],ResumenDeGastosMensuales[[#This Row],[Código de contabilidad general]],Otros[[Fecha de solicitud del cheque ]],\">=\"&DATEVALUE(\" 1 \"&ResumenDeGastosMensuales[[#Headers],[Enero]]&_YEAR),Otros[[Fecha de solicitud del cheque ]],\"<=\"&I$4)","v":{"v":0,"d":"0.00 €"}},{"$f":"SUMIFS(GastosDetallados[Importe del cheque],GastosDetallados[Código de contabilidad general],ResumenDeGastosMensuales[[#This Row],[Código de contabilidad general]],GastosDetallados[Fecha de la factura],\">=\"&J$3,GastosDetallados[Fecha de la factura],\"<=\"&J$4)+SUMIFS(Otros[Importe del cheque],Otros[Código de contabilidad general],ResumenDeGastosMensuales[[#This Row],[Código de contabilidad general]],Otros[[Fecha de solicitud del cheque ]],\">=\"&DATEVALUE(\" 1 \"&ResumenDeGastosMensuales[[#Headers],[Enero]]&_YEAR),Otros[[Fecha de solicitud del cheque ]],\"<=\"&J$4)","v":{"v":0,"d":"0.00 €"}},{"$f":"SUMIFS(GastosDetallados[Importe del cheque],GastosDetallados[Código de contabilidad general],ResumenDeGastosMensuales[[#This Row],[Código de contabilidad general]],GastosDetallados[Fecha de la factura],\">=\"&K$3,GastosDetallados[Fecha de la factura],\"<=\"&K$4)+SUMIFS(Otros[Importe del cheque],Otros[Código de contabilidad general],ResumenDeGastosMensuales[[#This Row],[Código de contabilidad general]],Otros[[Fecha de solicitud del cheque ]],\">=\"&DATEVALUE(\" 1 \"&ResumenDeGastosMensuales[[#Headers],[Enero]]&_YEAR),Otros[[Fecha de solicitud del cheque ]],\"<=\"&K$4)","v":{"v":0,"d":"0.00 €"}},{"$f":"SUMIFS(GastosDetallados[Importe del cheque],GastosDetallados[Código de contabilidad general],ResumenDeGastosMensuales[[#This Row],[Código de contabilidad general]],GastosDetallados[Fecha de la factura],\">=\"&L$3,GastosDetallados[Fecha de la factura],\"<=\"&L$4)+SUMIFS(Otros[Importe del cheque],Otros[Código de contabilidad general],ResumenDeGastosMensuales[[#This Row],[Código de contabilidad general]],Otros[[Fecha de solicitud del cheque ]],\">=\"&DATEVALUE(\" 1 \"&ResumenDeGastosMensuales[[#Headers],[Enero]]&_YEAR),Otros[[Fecha de solicitud del cheque ]],\"<=\"&L$4)","v":{"v":0,"d":"0.00 €"}},{"$f":"SUMIFS(GastosDetallados[Importe del cheque],GastosDetallados[Código de contabilidad general],ResumenDeGastosMensuales[[#This Row],[Código de contabilidad general]],GastosDetallados[Fecha de la factura],\">=\"&M$3,GastosDetallados[Fecha de la factura],\"<=\"&M$4)+SUMIFS(Otros[Importe del cheque],Otros[Código de contabilidad general],ResumenDeGastosMensuales[[#This Row],[Código de contabilidad general]],Otros[[Fecha de solicitud del cheque ]],\">=\"&DATEVALUE(\" 1 \"&ResumenDeGastosMensuales[[#Headers],[Enero]]&_YEAR),Otros[[Fecha de solicitud del cheque ]],\"<=\"&M$4)","v":{"v":0,"d":"0.00 €"}},{"$f":"SUMIFS(GastosDetallados[Importe del cheque],GastosDetallados[Código de contabilidad general],ResumenDeGastosMensuales[[#This Row],[Código de contabilidad general]],GastosDetallados[Fecha de la factura],\">=\"&N$3,GastosDetallados[Fecha de la factura],\"<=\"&N$4)+SUMIFS(Otros[Importe del cheque],Otros[Código de contabilidad general],ResumenDeGastosMensuales[[#This Row],[Código de contabilidad general]],Otros[[Fecha de solicitud del cheque ]],\">=\"&DATEVALUE(\" 1 \"&ResumenDeGastosMensuales[[#Headers],[Enero]]&_YEAR),Otros[[Fecha de solicitud del cheque ]],\"<=\"&N$4)","v":{"v":0,"d":"0.00 €"}},{"$f":"SUMIFS(GastosDetallados[Importe del cheque],GastosDetallados[Código de contabilidad general],ResumenDeGastosMensuales[[#This Row],[Código de contabilidad general]],GastosDetallados[Fecha de la factura],\">=\"&O$3,GastosDetallados[Fecha de la factura],\"<=\"&O$4)+SUMIFS(Otros[Importe del cheque],Otros[Código de contabilidad general],ResumenDeGastosMensuales[[#This Row],[Código de contabilidad general]],Otros[[Fecha de solicitud del cheque ]],\">=\"&DATEVALUE(\" 1 \"&ResumenDeGastosMensuales[[#Headers],[Enero]]&_YEAR),Otros[[Fecha de solicitud del cheque ]],\"<=\"&O$4)","v":{"v":0,"d":"0.00 €"}},{"$f":"SUM(ResumenDeGastosMensuales[[#This Row],[Enero]:[Diciembre]])","v":{"v":0,"d":"0.00 €"}}]
[null,9000,"Costes de construcción",{"$f":"SUMIFS(GastosDetallados[Importe del cheque],GastosDetallados[Código de contabilidad general],ResumenDeGastosMensuales[[#This Row],[Código de contabilidad general]],GastosDetallados[Fecha de la factura],\">=\"&D$3,GastosDetallados[Fecha de la factura],\"<=\"&D$4)+SUMIFS(Otros[Importe del cheque],Otros[Código de contabilidad general],ResumenDeGastosMensuales[[#This Row],[Código de contabilidad general]],Otros[[Fecha de solicitud del cheque ]],\">=\"&DATEVALUE(\" 1 \"&ResumenDeGastosMensuales[[#Headers],[Enero]]&_YEAR),Otros[[Fecha de solicitud del cheque ]],\"<=\"&D$4)","v":{"v":0,"d":"0.00 €"}},{"$f":"SUMIFS(GastosDetallados[Importe del cheque],GastosDetallados[Código de contabilidad general],ResumenDeGastosMensuales[[#This Row],[Código de contabilidad general]],GastosDetallados[Fecha de la factura],\">=\"&E$3,GastosDetallados[Fecha de la factura],\"<=\"&E$4)+SUMIFS(Otros[Importe del cheque],Otros[Código de contabilidad general],ResumenDeGastosMensuales[[#This Row],[Código de contabilidad general]],Otros[[Fecha de solicitud del cheque ]],\">=\"&DATEVALUE(\" 1 \"&ResumenDeGastosMensuales[[#Headers],[Enero]]&_YEAR),Otros[[Fecha de solicitud del cheque ]],\"<=\"&E$4)","v":{"v":0,"d":"0.00 €"}},{"$f":"SUMIFS(GastosDetallados[Importe del cheque],GastosDetallados[Código de contabilidad general],ResumenDeGastosMensuales[[#This Row],[Código de contabilidad general]],GastosDetallados[Fecha de la factura],\">=\"&F$3,GastosDetallados[Fecha de la factura],\"<=\"&F$4)+SUMIFS(Otros[Importe del cheque],Otros[Código de contabilidad general],ResumenDeGastosMensuales[[#This Row],[Código de contabilidad general]],Otros[[Fecha de solicitud del cheque ]],\">=\"&DATEVALUE(\" 1 \"&ResumenDeGastosMensuales[[#Headers],[Enero]]&_YEAR),Otros[[Fecha de solicitud del cheque ]],\"<=\"&F$4)","v":{"v":0,"d":"0.00 €"}},{"$f":"SUMIFS(GastosDetallados[Importe del cheque],GastosDetallados[Código de contabilidad general],ResumenDeGastosMensuales[[#This Row],[Código de contabilidad general]],GastosDetallados[Fecha de la factura],\">=\"&G$3,GastosDetallados[Fecha de la factura],\"<=\"&G$4)+SUMIFS(Otros[Importe del cheque],Otros[Código de contabilidad general],ResumenDeGastosMensuales[[#This Row],[Código de contabilidad general]],Otros[[Fecha de solicitud del cheque ]],\">=\"&DATEVALUE(\" 1 \"&ResumenDeGastosMensuales[[#Headers],[Enero]]&_YEAR),Otros[[Fecha de solicitud del cheque ]],\"<=\"&G$4)","v":{"v":0,"d":"0.00 €"}},{"$f":"SUMIFS(GastosDetallados[Importe del cheque],GastosDetallados[Código de contabilidad general],ResumenDeGastosMensuales[[#This Row],[Código de contabilidad general]],GastosDetallados[Fecha de la factura],\">=\"&H$3,GastosDetallados[Fecha de la factura],\"<=\"&H$4)+SUMIFS(Otros[Importe del cheque],Otros[Código de contabilidad general],ResumenDeGastosMensuales[[#This Row],[Código de contabilidad general]],Otros[[Fecha de solicitud del cheque ]],\">=\"&DATEVALUE(\" 1 \"&ResumenDeGastosMensuales[[#Headers],[Enero]]&_YEAR),Otros[[Fecha de solicitud del cheque ]],\"<=\"&H$4)","v":{"v":0,"d":"0.00 €"}},{"$f":"SUMIFS(GastosDetallados[Importe del cheque],GastosDetallados[Código de contabilidad general],ResumenDeGastosMensuales[[#This Row],[Código de contabilidad general]],GastosDetallados[Fecha de la factura],\">=\"&I$3,GastosDetallados[Fecha de la factura],\"<=\"&I$4)+SUMIFS(Otros[Importe del cheque],Otros[Código de contabilidad general],ResumenDeGastosMensuales[[#This Row],[Código de contabilidad general]],Otros[[Fecha de solicitud del cheque ]],\">=\"&DATEVALUE(\" 1 \"&ResumenDeGastosMensuales[[#Headers],[Enero]]&_YEAR),Otros[[Fecha de solicitud del cheque ]],\"<=\"&I$4)","v":{"v":0,"d":"0.00 €"}},{"$f":"SUMIFS(GastosDetallados[Importe del cheque],GastosDetallados[Código de contabilidad general],ResumenDeGastosMensuales[[#This Row],[Código de contabilidad general]],GastosDetallados[Fecha de la factura],\">=\"&J$3,GastosDetallados[Fecha de la factura],\"<=\"&J$4)+SUMIFS(Otros[Importe del cheque],Otros[Código de contabilidad general],ResumenDeGastosMensuales[[#This Row],[Código de contabilidad general]],Otros[[Fecha de solicitud del cheque ]],\">=\"&DATEVALUE(\" 1 \"&ResumenDeGastosMensuales[[#Headers],[Enero]]&_YEAR),Otros[[Fecha de solicitud del cheque ]],\"<=\"&J$4)","v":{"v":0,"d":"0.00 €"}},{"$f":"SUMIFS(GastosDetallados[Importe del cheque],GastosDetallados[Código de contabilidad general],ResumenDeGastosMensuales[[#This Row],[Código de contabilidad general]],GastosDetallados[Fecha de la factura],\">=\"&K$3,GastosDetallados[Fecha de la factura],\"<=\"&K$4)+SUMIFS(Otros[Importe del cheque],Otros[Código de contabilidad general],ResumenDeGastosMensuales[[#This Row],[Código de contabilidad general]],Otros[[Fecha de solicitud del cheque ]],\">=\"&DATEVALUE(\" 1 \"&ResumenDeGastosMensuales[[#Headers],[Enero]]&_YEAR),Otros[[Fecha de solicitud del cheque ]],\"<=\"&K$4)","v":{"v":0,"d":"0.00 €"}},{"$f":"SUMIFS(GastosDetallados[Importe del cheque],GastosDetallados[Código de contabilidad general],ResumenDeGastosMensuales[[#This Row],[Código de contabilidad general]],GastosDetallados[Fecha de la factura],\">=\"&L$3,GastosDetallados[Fecha de la factura],\"<=\"&L$4)+SUMIFS(Otros[Importe del cheque],Otros[Código de contabilidad general],ResumenDeGastosMensuales[[#This Row],[Código de contabilidad general]],Otros[[Fecha de solicitud del cheque ]],\">=\"&DATEVALUE(\" 1 \"&ResumenDeGastosMensuales[[#Headers],[Enero]]&_YEAR),Otros[[Fecha de solicitud del cheque ]],\"<=\"&L$4)","v":{"v":0,"d":"0.00 €"}},{"$f":"SUMIFS(GastosDetallados[Importe del cheque],GastosDetallados[Código de contabilidad general],ResumenDeGastosMensuales[[#This Row],[Código de contabilidad general]],GastosDetallados[Fecha de la factura],\">=\"&M$3,GastosDetallados[Fecha de la factura],\"<=\"&M$4)+SUMIFS(Otros[Importe del cheque],Otros[Código de contabilidad general],ResumenDeGastosMensuales[[#This Row],[Código de contabilidad general]],Otros[[Fecha de solicitud del cheque ]],\">=\"&DATEVALUE(\" 1 \"&ResumenDeGastosMensuales[[#Headers],[Enero]]&_YEAR),Otros[[Fecha de solicitud del cheque ]],\"<=\"&M$4)","v":{"v":0,"d":"0.00 €"}},{"$f":"SUMIFS(GastosDetallados[Importe del cheque],GastosDetallados[Código de contabilidad general],ResumenDeGastosMensuales[[#This Row],[Código de contabilidad general]],GastosDetallados[Fecha de la factura],\">=\"&N$3,GastosDetallados[Fecha de la factura],\"<=\"&N$4)+SUMIFS(Otros[Importe del cheque],Otros[Código de contabilidad general],ResumenDeGastosMensuales[[#This Row],[Código de contabilidad general]],Otros[[Fecha de solicitud del cheque ]],\">=\"&DATEVALUE(\" 1 \"&ResumenDeGastosMensuales[[#Headers],[Enero]]&_YEAR),Otros[[Fecha de solicitud del cheque ]],\"<=\"&N$4)","v":{"v":0,"d":"0.00 €"}},{"$f":"SUMIFS(GastosDetallados[Importe del cheque],GastosDetallados[Código de contabilidad general],ResumenDeGastosMensuales[[#This Row],[Código de contabilidad general]],GastosDetallados[Fecha de la factura],\">=\"&O$3,GastosDetallados[Fecha de la factura],\"<=\"&O$4)+SUMIFS(Otros[Importe del cheque],Otros[Código de contabilidad general],ResumenDeGastosMensuales[[#This Row],[Código de contabilidad general]],Otros[[Fecha de solicitud del cheque ]],\">=\"&DATEVALUE(\" 1 \"&ResumenDeGastosMensuales[[#Headers],[Enero]]&_YEAR),Otros[[Fecha de solicitud del cheque ]],\"<=\"&O$4)","v":{"v":0,"d":"0.00 €"}},{"$f":"SUM(ResumenDeGastosMensuales[[#This Row],[Enero]:[Diciembre]])","v":{"v":0,"d":"0.00 €"}}]
[null,10000,"Marketing",{"$f":"SUMIFS(GastosDetallados[Importe del cheque],GastosDetallados[Código de contabilidad general],ResumenDeGastosMensuales[[#This Row],[Código de contabilidad general]],GastosDetallados[Fecha de la factura],\">=\"&D$3,GastosDetallados[Fecha de la factura],\"<=\"&D$4)+SUMIFS(Otros[Importe del cheque],Otros[Código de contabilidad general],ResumenDeGastosMensuales[[#This Row],[Código de contabilidad general]],Otros[[Fecha de solicitud del cheque ]],\">=\"&DATEVALUE(\" 1 \"&ResumenDeGastosMensuales[[#Headers],[Enero]]&_YEAR),Otros[[Fecha de solicitud del cheque ]],\"<=\"&D$4)","v":{"v":0,"d":"0.00 €"}},{"$f":"SUMIFS(GastosDetallados[Importe del cheque],GastosDetallados[Código de contabilidad general],ResumenDeGastosMensuales[[#This Row],[Código de contabilidad general]],GastosDetallados[Fecha de la factura],\">=\"&E$3,GastosDetallados[Fecha de la factura],\"<=\"&E$4)+SUMIFS(Otros[Importe del cheque],Otros[Código de contabilidad general],ResumenDeGastosMensuales[[#This Row],[Código de contabilidad general]],Otros[[Fecha de solicitud del cheque ]],\">=\"&DATEVALUE(\" 1 \"&ResumenDeGastosMensuales[[#Headers],[Enero]]&_YEAR),Otros[[Fecha de solicitud del cheque ]],\"<=\"&E$4)","v":{"v":0,"d":"0.00 €"}},{"$f":"SUMIFS(GastosDetallados[Importe del cheque],GastosDetallados[Código de contabilidad general],ResumenDeGastosMensuales[[#This Row],[Código de contabilidad general]],GastosDetallados[Fecha de la factura],\">=\"&F$3,GastosDetallados[Fecha de la factura],\"<=\"&F$4)+SUMIFS(Otros[Importe del cheque],Otros[Código de contabilidad general],ResumenDeGastosMensuales[[#This Row],[Código de contabilidad general]],Otros[[Fecha de solicitud del cheque ]],\">=\"&DATEVALUE(\" 1 \"&ResumenDeGastosMensuales[[#Headers],[Enero]]&_YEAR),Otros[[Fecha de solicitud del cheque ]],\"<=\"&F$4)","v":{"v":0,"d":"0.00 €"}},{"$f":"SUMIFS(GastosDetallados[Importe del cheque],GastosDetallados[Código de contabilidad general],ResumenDeGastosMensuales[[#This Row],[Código de contabilidad general]],GastosDetallados[Fecha de la factura],\">=\"&G$3,GastosDetallados[Fecha de la factura],\"<=\"&G$4)+SUMIFS(Otros[Importe del cheque],Otros[Código de contabilidad general],ResumenDeGastosMensuales[[#This Row],[Código de contabilidad general]],Otros[[Fecha de solicitud del cheque ]],\">=\"&DATEVALUE(\" 1 \"&ResumenDeGastosMensuales[[#Headers],[Enero]]&_YEAR),Otros[[Fecha de solicitud del cheque ]],\"<=\"&G$4)","v":{"v":0,"d":"0.00 €"}},{"$f":"SUMIFS(GastosDetallados[Importe del cheque],GastosDetallados[Código de contabilidad general],ResumenDeGastosMensuales[[#This Row],[Código de contabilidad general]],GastosDetallados[Fecha de la factura],\">=\"&H$3,GastosDetallados[Fecha de la factura],\"<=\"&H$4)+SUMIFS(Otros[Importe del cheque],Otros[Código de contabilidad general],ResumenDeGastosMensuales[[#This Row],[Código de contabilidad general]],Otros[[Fecha de solicitud del cheque ]],\">=\"&DATEVALUE(\" 1 \"&ResumenDeGastosMensuales[[#Headers],[Enero]]&_YEAR),Otros[[Fecha de solicitud del cheque ]],\"<=\"&H$4)","v":{"v":0,"d":"0.00 €"}},{"$f":"SUMIFS(GastosDetallados[Importe del cheque],GastosDetallados[Código de contabilidad general],ResumenDeGastosMensuales[[#This Row],[Código de contabilidad general]],GastosDetallados[Fecha de la factura],\">=\"&I$3,GastosDetallados[Fecha de la factura],\"<=\"&I$4)+SUMIFS(Otros[Importe del cheque],Otros[Código de contabilidad general],ResumenDeGastosMensuales[[#This Row],[Código de contabilidad general]],Otros[[Fecha de solicitud del cheque ]],\">=\"&DATEVALUE(\" 1 \"&ResumenDeGastosMensuales[[#Headers],[Enero]]&_YEAR),Otros[[Fecha de solicitud del cheque ]],\"<=\"&I$4)","v":{"v":0,"d":"0.00 €"}},{"$f":"SUMIFS(GastosDetallados[Importe del cheque],GastosDetallados[Código de contabilidad general],ResumenDeGastosMensuales[[#This Row],[Código de contabilidad general]],GastosDetallados[Fecha de la factura],\">=\"&J$3,GastosDetallados[Fecha de la factura],\"<=\"&J$4)+SUMIFS(Otros[Importe del cheque],Otros[Código de contabilidad general],ResumenDeGastosMensuales[[#This Row],[Código de contabilidad general]],Otros[[Fecha de solicitud del cheque ]],\">=\"&DATEVALUE(\" 1 \"&ResumenDeGastosMensuales[[#Headers],[Enero]]&_YEAR),Otros[[Fecha de solicitud del cheque ]],\"<=\"&J$4)","v":{"v":0,"d":"0.00 €"}},{"$f":"SUMIFS(GastosDetallados[Importe del cheque],GastosDetallados[Código de contabilidad general],ResumenDeGastosMensuales[[#This Row],[Código de contabilidad general]],GastosDetallados[Fecha de la factura],\">=\"&K$3,GastosDetallados[Fecha de la factura],\"<=\"&K$4)+SUMIFS(Otros[Importe del cheque],Otros[Código de contabilidad general],ResumenDeGastosMensuales[[#This Row],[Código de contabilidad general]],Otros[[Fecha de solicitud del cheque ]],\">=\"&DATEVALUE(\" 1 \"&ResumenDeGastosMensuales[[#Headers],[Enero]]&_YEAR),Otros[[Fecha de solicitud del cheque ]],\"<=\"&K$4)","v":{"v":0,"d":"0.00 €"}},{"$f":"SUMIFS(GastosDetallados[Importe del cheque],GastosDetallados[Código de contabilidad general],ResumenDeGastosMensuales[[#This Row],[Código de contabilidad general]],GastosDetallados[Fecha de la factura],\">=\"&L$3,GastosDetallados[Fecha de la factura],\"<=\"&L$4)+SUMIFS(Otros[Importe del cheque],Otros[Código de contabilidad general],ResumenDeGastosMensuales[[#This Row],[Código de contabilidad general]],Otros[[Fecha de solicitud del cheque ]],\">=\"&DATEVALUE(\" 1 \"&ResumenDeGastosMensuales[[#Headers],[Enero]]&_YEAR),Otros[[Fecha de solicitud del cheque ]],\"<=\"&L$4)","v":{"v":0,"d":"0.00 €"}},{"$f":"SUMIFS(GastosDetallados[Importe del cheque],GastosDetallados[Código de contabilidad general],ResumenDeGastosMensuales[[#This Row],[Código de contabilidad general]],GastosDetallados[Fecha de la factura],\">=\"&M$3,GastosDetallados[Fecha de la factura],\"<=\"&M$4)+SUMIFS(Otros[Importe del cheque],Otros[Código de contabilidad general],ResumenDeGastosMensuales[[#This Row],[Código de contabilidad general]],Otros[[Fecha de solicitud del cheque ]],\">=\"&DATEVALUE(\" 1 \"&ResumenDeGastosMensuales[[#Headers],[Enero]]&_YEAR),Otros[[Fecha de solicitud del cheque ]],\"<=\"&M$4)","v":{"v":0,"d":"0.00 €"}},{"$f":"SUMIFS(GastosDetallados[Importe del cheque],GastosDetallados[Código de contabilidad general],ResumenDeGastosMensuales[[#This Row],[Código de contabilidad general]],GastosDetallados[Fecha de la factura],\">=\"&N$3,GastosDetallados[Fecha de la factura],\"<=\"&N$4)+SUMIFS(Otros[Importe del cheque],Otros[Código de contabilidad general],ResumenDeGastosMensuales[[#This Row],[Código de contabilidad general]],Otros[[Fecha de solicitud del cheque ]],\">=\"&DATEVALUE(\" 1 \"&ResumenDeGastosMensuales[[#Headers],[Enero]]&_YEAR),Otros[[Fecha de solicitud del cheque ]],\"<=\"&N$4)","v":{"v":0,"d":"0.00 €"}},{"$f":"SUMIFS(GastosDetallados[Importe del cheque],GastosDetallados[Código de contabilidad general],ResumenDeGastosMensuales[[#This Row],[Código de contabilidad general]],GastosDetallados[Fecha de la factura],\">=\"&O$3,GastosDetallados[Fecha de la factura],\"<=\"&O$4)+SUMIFS(Otros[Importe del cheque],Otros[Código de contabilidad general],ResumenDeGastosMensuales[[#This Row],[Código de contabilidad general]],Otros[[Fecha de solicitud del cheque ]],\">=\"&DATEVALUE(\" 1 \"&ResumenDeGastosMensuales[[#Headers],[Enero]]&_YEAR),Otros[[Fecha de solicitud del cheque ]],\"<=\"&O$4)","v":{"v":0,"d":"0.00 €"}},{"$f":"SUM(ResumenDeGastosMensuales[[#This Row],[Enero]:[Diciembre]])","v":{"v":0,"d":"0.00 €"}}]
[null,11000,"Beneficencia ",{"$f":"SUMIFS(GastosDetallados[Importe del cheque],GastosDetallados[Código de contabilidad general],ResumenDeGastosMensuales[[#This Row],[Código de contabilidad general]],GastosDetallados[Fecha de la factura],\">=\"&D$3,GastosDetallados[Fecha de la factura],\"<=\"&D$4)+SUMIFS(Otros[Importe del cheque],Otros[Código de contabilidad general],ResumenDeGastosMensuales[[#This Row],[Código de contabilidad general]],Otros[[Fecha de solicitud del cheque ]],\">=\"&DATEVALUE(\" 1 \"&ResumenDeGastosMensuales[[#Headers],[Enero]]&_YEAR),Otros[[Fecha de solicitud del cheque ]],\"<=\"&D$4)","v":{"v":0,"d":"0.00 €"}},{"$f":"SUMIFS(GastosDetallados[Importe del cheque],GastosDetallados[Código de contabilidad general],ResumenDeGastosMensuales[[#This Row],[Código de contabilidad general]],GastosDetallados[Fecha de la factura],\">=\"&E$3,GastosDetallados[Fecha de la factura],\"<=\"&E$4)+SUMIFS(Otros[Importe del cheque],Otros[Código de contabilidad general],ResumenDeGastosMensuales[[#This Row],[Código de contabilidad general]],Otros[[Fecha de solicitud del cheque ]],\">=\"&DATEVALUE(\" 1 \"&ResumenDeGastosMensuales[[#Headers],[Enero]]&_YEAR),Otros[[Fecha de solicitud del cheque ]],\"<=\"&E$4)","v":{"v":0,"d":"0.00 €"}},{"$f":"SUMIFS(GastosDetallados[Importe del cheque],GastosDetallados[Código de contabilidad general],ResumenDeGastosMensuales[[#This Row],[Código de contabilidad general]],GastosDetallados[Fecha de la factura],\">=\"&F$3,GastosDetallados[Fecha de la factura],\"<=\"&F$4)+SUMIFS(Otros[Importe del cheque],Otros[Código de contabilidad general],ResumenDeGastosMensuales[[#This Row],[Código de contabilidad general]],Otros[[Fecha de solicitud del cheque ]],\">=\"&DATEVALUE(\" 1 \"&ResumenDeGastosMensuales[[#Headers],[Enero]]&_YEAR),Otros[[Fecha de solicitud del cheque ]],\"<=\"&F$4)","v":{"v":0,"d":"0.00 €"}},{"$f":"SUMIFS(GastosDetallados[Importe del cheque],GastosDetallados[Código de contabilidad general],ResumenDeGastosMensuales[[#This Row],[Código de contabilidad general]],GastosDetallados[Fecha de la factura],\">=\"&G$3,GastosDetallados[Fecha de la factura],\"<=\"&G$4)+SUMIFS(Otros[Importe del cheque],Otros[Código de contabilidad general],ResumenDeGastosMensuales[[#This Row],[Código de contabilidad general]],Otros[[Fecha de solicitud del cheque ]],\">=\"&DATEVALUE(\" 1 \"&ResumenDeGastosMensuales[[#Headers],[Enero]]&_YEAR),Otros[[Fecha de solicitud del cheque ]],\"<=\"&G$4)","v":{"v":0,"d":"0.00 €"}},{"$f":"SUMIFS(GastosDetallados[Importe del cheque],GastosDetallados[Código de contabilidad general],ResumenDeGastosMensuales[[#This Row],[Código de contabilidad general]],GastosDetallados[Fecha de la factura],\">=\"&H$3,GastosDetallados[Fecha de la factura],\"<=\"&H$4)+SUMIFS(Otros[Importe del cheque],Otros[Código de contabilidad general],ResumenDeGastosMensuales[[#This Row],[Código de contabilidad general]],Otros[[Fecha de solicitud del cheque ]],\">=\"&DATEVALUE(\" 1 \"&ResumenDeGastosMensuales[[#Headers],[Enero]]&_YEAR),Otros[[Fecha de solicitud del cheque ]],\"<=\"&H$4)","v":{"v":0,"d":"0.00 €"}},{"$f":"SUMIFS(GastosDetallados[Importe del cheque],GastosDetallados[Código de contabilidad general],ResumenDeGastosMensuales[[#This Row],[Código de contabilidad general]],GastosDetallados[Fecha de la factura],\">=\"&I$3,GastosDetallados[Fecha de la factura],\"<=\"&I$4)+SUMIFS(Otros[Importe del cheque],Otros[Código de contabilidad general],ResumenDeGastosMensuales[[#This Row],[Código de contabilidad general]],Otros[[Fecha de solicitud del cheque ]],\">=\"&DATEVALUE(\" 1 \"&ResumenDeGastosMensuales[[#Headers],[Enero]]&_YEAR),Otros[[Fecha de solicitud del cheque ]],\"<=\"&I$4)","v":{"v":0,"d":"0.00 €"}},{"$f":"SUMIFS(GastosDetallados[Importe del cheque],GastosDetallados[Código de contabilidad general],ResumenDeGastosMensuales[[#This Row],[Código de contabilidad general]],GastosDetallados[Fecha de la factura],\">=\"&J$3,GastosDetallados[Fecha de la factura],\"<=\"&J$4)+SUMIFS(Otros[Importe del cheque],Otros[Código de contabilidad general],ResumenDeGastosMensuales[[#This Row],[Código de contabilidad general]],Otros[[Fecha de solicitud del cheque ]],\">=\"&DATEVALUE(\" 1 \"&ResumenDeGastosMensuales[[#Headers],[Enero]]&_YEAR),Otros[[Fecha de solicitud del cheque ]],\"<=\"&J$4)","v":{"v":0,"d":"0.00 €"}},{"$f":"SUMIFS(GastosDetallados[Importe del cheque],GastosDetallados[Código de contabilidad general],ResumenDeGastosMensuales[[#This Row],[Código de contabilidad general]],GastosDetallados[Fecha de la factura],\">=\"&K$3,GastosDetallados[Fecha de la factura],\"<=\"&K$4)+SUMIFS(Otros[Importe del cheque],Otros[Código de contabilidad general],ResumenDeGastosMensuales[[#This Row],[Código de contabilidad general]],Otros[[Fecha de solicitud del cheque ]],\">=\"&DATEVALUE(\" 1 \"&ResumenDeGastosMensuales[[#Headers],[Enero]]&_YEAR),Otros[[Fecha de solicitud del cheque ]],\"<=\"&K$4)","v":{"v":0,"d":"0.00 €"}},{"$f":"SUMIFS(GastosDetallados[Importe del cheque],GastosDetallados[Código de contabilidad general],ResumenDeGastosMensuales[[#This Row],[Código de contabilidad general]],GastosDetallados[Fecha de la factura],\">=\"&L$3,GastosDetallados[Fecha de la factura],\"<=\"&L$4)+SUMIFS(Otros[Importe del cheque],Otros[Código de contabilidad general],ResumenDeGastosMensuales[[#This Row],[Código de contabilidad general]],Otros[[Fecha de solicitud del cheque ]],\">=\"&DATEVALUE(\" 1 \"&ResumenDeGastosMensuales[[#Headers],[Enero]]&_YEAR),Otros[[Fecha de solicitud del cheque ]],\"<=\"&L$4)","v":{"v":0,"d":"0.00 €"}},{"$f":"SUMIFS(GastosDetallados[Importe del cheque],GastosDetallados[Código de contabilidad general],ResumenDeGastosMensuales[[#This Row],[Código de contabilidad general]],GastosDetallados[Fecha de la factura],\">=\"&M$3,GastosDetallados[Fecha de la factura],\"<=\"&M$4)+SUMIFS(Otros[Importe del cheque],Otros[Código de contabilidad general],ResumenDeGastosMensuales[[#This Row],[Código de contabilidad general]],Otros[[Fecha de solicitud del cheque ]],\">=\"&DATEVALUE(\" 1 \"&ResumenDeGastosMensuales[[#Headers],[Enero]]&_YEAR),Otros[[Fecha de solicitud del cheque ]],\"<=\"&M$4)","v":{"v":0,"d":"0.00 €"}},{"$f":"SUMIFS(GastosDetallados[Importe del cheque],GastosDetallados[Código de contabilidad general],ResumenDeGastosMensuales[[#This Row],[Código de contabilidad general]],GastosDetallados[Fecha de la factura],\">=\"&N$3,GastosDetallados[Fecha de la factura],\"<=\"&N$4)+SUMIFS(Otros[Importe del cheque],Otros[Código de contabilidad general],ResumenDeGastosMensuales[[#This Row],[Código de contabilidad general]],Otros[[Fecha de solicitud del cheque ]],\">=\"&DATEVALUE(\" 1 \"&ResumenDeGastosMensuales[[#Headers],[Enero]]&_YEAR),Otros[[Fecha de solicitud del cheque ]],\"<=\"&N$4)","v":{"v":0,"d":"0.00 €"}},{"$f":"SUMIFS(GastosDetallados[Importe del cheque],GastosDetallados[Código de contabilidad general],ResumenDeGastosMensuales[[#This Row],[Código de contabilidad general]],GastosDetallados[Fecha de la factura],\">=\"&O$3,GastosDetallados[Fecha de la factura],\"<=\"&O$4)+SUMIFS(Otros[Importe del cheque],Otros[Código de contabilidad general],ResumenDeGastosMensuales[[#This Row],[Código de contabilidad general]],Otros[[Fecha de solicitud del cheque ]],\">=\"&DATEVALUE(\" 1 \"&ResumenDeGastosMensuales[[#Headers],[Enero]]&_YEAR),Otros[[Fecha de solicitud del cheque ]],\"<=\"&O$4)","v":{"v":0,"d":"0.00 €"}},{"$f":"SUM(ResumenDeGastosMensuales[[#This Row],[Enero]:[Diciembre]])","v":{"v":0,"d":"0.00 €"}}]
[null,12000,"Patrocinios",{"$f":"SUMIFS(GastosDetallados[Importe del cheque],GastosDetallados[Código de contabilidad general],ResumenDeGastosMensuales[[#This Row],[Código de contabilidad general]],GastosDetallados[Fecha de la factura],\">=\"&D$3,GastosDetallados[Fecha de la factura],\"<=\"&D$4)+SUMIFS(Otros[Importe del cheque],Otros[Código de contabilidad general],ResumenDeGastosMensuales[[#This Row],[Código de contabilidad general]],Otros[[Fecha de solicitud del cheque ]],\">=\"&DATEVALUE(\" 1 \"&ResumenDeGastosMensuales[[#Headers],[Enero]]&_YEAR),Otros[[Fecha de solicitud del cheque ]],\"<=\"&D$4)","v":{"v":0,"d":"0.00 €"}},{"$f":"SUMIFS(GastosDetallados[Importe del cheque],GastosDetallados[Código de contabilidad general],ResumenDeGastosMensuales[[#This Row],[Código de contabilidad general]],GastosDetallados[Fecha de la factura],\">=\"&E$3,GastosDetallados[Fecha de la factura],\"<=\"&E$4)+SUMIFS(Otros[Importe del cheque],Otros[Código de contabilidad general],ResumenDeGastosMensuales[[#This Row],[Código de contabilidad general]],Otros[[Fecha de solicitud del cheque ]],\">=\"&DATEVALUE(\" 1 \"&ResumenDeGastosMensuales[[#Headers],[Enero]]&_YEAR),Otros[[Fecha de solicitud del cheque ]],\"<=\"&E$4)","v":{"v":0,"d":"0.00 €"}},{"$f":"SUMIFS(GastosDetallados[Importe del cheque],GastosDetallados[Código de contabilidad general],ResumenDeGastosMensuales[[#This Row],[Código de contabilidad general]],GastosDetallados[Fecha de la factura],\">=\"&F$3,GastosDetallados[Fecha de la factura],\"<=\"&F$4)+SUMIFS(Otros[Importe del cheque],Otros[Código de contabilidad general],ResumenDeGastosMensuales[[#This Row],[Código de contabilidad general]],Otros[[Fecha de solicitud del cheque ]],\">=\"&DATEVALUE(\" 1 \"&ResumenDeGastosMensuales[[#Headers],[Enero]]&_YEAR),Otros[[Fecha de solicitud del cheque ]],\"<=\"&F$4)","v":{"v":0,"d":"0.00 €"}},{"$f":"SUMIFS(GastosDetallados[Importe del cheque],GastosDetallados[Código de contabilidad general],ResumenDeGastosMensuales[[#This Row],[Código de contabilidad general]],GastosDetallados[Fecha de la factura],\">=\"&G$3,GastosDetallados[Fecha de la factura],\"<=\"&G$4)+SUMIFS(Otros[Importe del cheque],Otros[Código de contabilidad general],ResumenDeGastosMensuales[[#This Row],[Código de contabilidad general]],Otros[[Fecha de solicitud del cheque ]],\">=\"&DATEVALUE(\" 1 \"&ResumenDeGastosMensuales[[#Headers],[Enero]]&_YEAR),Otros[[Fecha de solicitud del cheque ]],\"<=\"&G$4)","v":{"v":0,"d":"0.00 €"}},{"$f":"SUMIFS(GastosDetallados[Importe del cheque],GastosDetallados[Código de contabilidad general],ResumenDeGastosMensuales[[#This Row],[Código de contabilidad general]],GastosDetallados[Fecha de la factura],\">=\"&H$3,GastosDetallados[Fecha de la factura],\"<=\"&H$4)+SUMIFS(Otros[Importe del cheque],Otros[Código de contabilidad general],ResumenDeGastosMensuales[[#This Row],[Código de contabilidad general]],Otros[[Fecha de solicitud del cheque ]],\">=\"&DATEVALUE(\" 1 \"&ResumenDeGastosMensuales[[#Headers],[Enero]]&_YEAR),Otros[[Fecha de solicitud del cheque ]],\"<=\"&H$4)","v":{"v":0,"d":"0.00 €"}},{"$f":"SUMIFS(GastosDetallados[Importe del cheque],GastosDetallados[Código de contabilidad general],ResumenDeGastosMensuales[[#This Row],[Código de contabilidad general]],GastosDetallados[Fecha de la factura],\">=\"&I$3,GastosDetallados[Fecha de la factura],\"<=\"&I$4)+SUMIFS(Otros[Importe del cheque],Otros[Código de contabilidad general],ResumenDeGastosMensuales[[#This Row],[Código de contabilidad general]],Otros[[Fecha de solicitud del cheque ]],\">=\"&DATEVALUE(\" 1 \"&ResumenDeGastosMensuales[[#Headers],[Enero]]&_YEAR),Otros[[Fecha de solicitud del cheque ]],\"<=\"&I$4)","v":{"v":0,"d":"0.00 €"}},{"$f":"SUMIFS(GastosDetallados[Importe del cheque],GastosDetallados[Código de contabilidad general],ResumenDeGastosMensuales[[#This Row],[Código de contabilidad general]],GastosDetallados[Fecha de la factura],\">=\"&J$3,GastosDetallados[Fecha de la factura],\"<=\"&J$4)+SUMIFS(Otros[Importe del cheque],Otros[Código de contabilidad general],ResumenDeGastosMensuales[[#This Row],[Código de contabilidad general]],Otros[[Fecha de solicitud del cheque ]],\">=\"&DATEVALUE(\" 1 \"&ResumenDeGastosMensuales[[#Headers],[Enero]]&_YEAR),Otros[[Fecha de solicitud del cheque ]],\"<=\"&J$4)","v":{"v":0,"d":"0.00 €"}},{"$f":"SUMIFS(GastosDetallados[Importe del cheque],GastosDetallados[Código de contabilidad general],ResumenDeGastosMensuales[[#This Row],[Código de contabilidad general]],GastosDetallados[Fecha de la factura],\">=\"&K$3,GastosDetallados[Fecha de la factura],\"<=\"&K$4)+SUMIFS(Otros[Importe del cheque],Otros[Código de contabilidad general],ResumenDeGastosMensuales[[#This Row],[Código de contabilidad general]],Otros[[Fecha de solicitud del cheque ]],\">=\"&DATEVALUE(\" 1 \"&ResumenDeGastosMensuales[[#Headers],[Enero]]&_YEAR),Otros[[Fecha de solicitud del cheque ]],\"<=\"&K$4)","v":{"v":0,"d":"0.00 €"}},{"$f":"SUMIFS(GastosDetallados[Importe del cheque],GastosDetallados[Código de contabilidad general],ResumenDeGastosMensuales[[#This Row],[Código de contabilidad general]],GastosDetallados[Fecha de la factura],\">=\"&L$3,GastosDetallados[Fecha de la factura],\"<=\"&L$4)+SUMIFS(Otros[Importe del cheque],Otros[Código de contabilidad general],ResumenDeGastosMensuales[[#This Row],[Código de contabilidad general]],Otros[[Fecha de solicitud del cheque ]],\">=\"&DATEVALUE(\" 1 \"&ResumenDeGastosMensuales[[#Headers],[Enero]]&_YEAR),Otros[[Fecha de solicitud del cheque ]],\"<=\"&L$4)","v":{"v":0,"d":"0.00 €"}},{"$f":"SUMIFS(GastosDetallados[Importe del cheque],GastosDetallados[Código de contabilidad general],ResumenDeGastosMensuales[[#This Row],[Código de contabilidad general]],GastosDetallados[Fecha de la factura],\">=\"&M$3,GastosDetallados[Fecha de la factura],\"<=\"&M$4)+SUMIFS(Otros[Importe del cheque],Otros[Código de contabilidad general],ResumenDeGastosMensuales[[#This Row],[Código de contabilidad general]],Otros[[Fecha de solicitud del cheque ]],\">=\"&DATEVALUE(\" 1 \"&ResumenDeGastosMensuales[[#Headers],[Enero]]&_YEAR),Otros[[Fecha de solicitud del cheque ]],\"<=\"&M$4)","v":{"v":0,"d":"0.00 €"}},{"$f":"SUMIFS(GastosDetallados[Importe del cheque],GastosDetallados[Código de contabilidad general],ResumenDeGastosMensuales[[#This Row],[Código de contabilidad general]],GastosDetallados[Fecha de la factura],\">=\"&N$3,GastosDetallados[Fecha de la factura],\"<=\"&N$4)+SUMIFS(Otros[Importe del cheque],Otros[Código de contabilidad general],ResumenDeGastosMensuales[[#This Row],[Código de contabilidad general]],Otros[[Fecha de solicitud del cheque ]],\">=\"&DATEVALUE(\" 1 \"&ResumenDeGastosMensuales[[#Headers],[Enero]]&_YEAR),Otros[[Fecha de solicitud del cheque ]],\"<=\"&N$4)","v":{"v":0,"d":"0.00 €"}},{"$f":"SUMIFS(GastosDetallados[Importe del cheque],GastosDetallados[Código de contabilidad general],ResumenDeGastosMensuales[[#This Row],[Código de contabilidad general]],GastosDetallados[Fecha de la factura],\">=\"&O$3,GastosDetallados[Fecha de la factura],\"<=\"&O$4)+SUMIFS(Otros[Importe del cheque],Otros[Código de contabilidad general],ResumenDeGastosMensuales[[#This Row],[Código de contabilidad general]],Otros[[Fecha de solicitud del cheque ]],\">=\"&DATEVALUE(\" 1 \"&ResumenDeGastosMensuales[[#Headers],[Enero]]&_YEAR),Otros[[Fecha de solicitud del cheque ]],\"<=\"&O$4)","v":{"v":0,"d":"0.00 €"}},{"$f":"SUM(ResumenDeGastosMensuales[[#This Row],[Enero]:[Diciembre]])","v":{"v":0,"d":"0.00 €"}}]
[null,"Total",null,{"$f":"SUBTOTAL(109,ResumenDeGastosMensuales[Enero])","v":{"v":0,"d":"0.00 €"}},{"$f":"SUBTOTAL(109,ResumenDeGastosMensuales[Febrero])","v":{"v":0,"d":"0.00 €"}},{"$f":"SUBTOTAL(109,ResumenDeGastosMensuales[Marzo])","v":{"v":0,"d":"0.00 €"}},{"$f":"SUBTOTAL(109,ResumenDeGastosMensuales[Abril])","v":{"v":0,"d":"0.00 €"}},{"$f":"SUBTOTAL(109,ResumenDeGastosMensuales[Mayo])","v":{"v":0,"d":"0.00 €"}},{"$f":"SUBTOTAL(109,ResumenDeGastosMensuales[Junio])","v":{"v":0,"d":"0.00 €"}},{"$f":"SUBTOTAL(109,ResumenDeGastosMensuales[Julio])","v":{"v":0,"d":"0.00 €"}},{"$f":"SUBTOTAL(109,ResumenDeGastosMensuales[Agosto])","v":{"v":0,"d":"0.00 €"}},{"$f":"SUBTOTAL(109,ResumenDeGastosMensuales[Septiembre])","v":{"v":0,"d":"0.00 €"}},{"$f":"SUBTOTAL(109,ResumenDeGastosMensuales[Octubre])","v":{"v":0,"d":"0.00 €"}},{"$f":"SUBTOTAL(109,ResumenDeGastosMensuales[Noviembre])","v":{"v":0,"d":"0.00 €"}},{"$f":"SUBTOTAL(109,ResumenDeGastosMensuales[Diciembre])","v":{"v":0,"d":"0.00 €"}},{"$f":"SUBTOTAL(109,ResumenDeGastosMensuales[Total])","v":{"v":0,"d":"0.00 €"}}]

{"sheet":"GASTOS DETALLADOS","index":2,"n_rows":6,"n_cols":10,"rows_kept":6,"merged":[[1,1,1,9],[2,1,2,5],[2,6,2,9]]}
[]
[null,"GASTOS DETALLADOS"]
[]
[null,"Código de contabilidad general","Fecha de la factura","N.º de factura","Solicitado por","Importe del cheque","Beneficiario","Uso cheque","Método de distribución","Fecha del archivo"]
[null,1000,"Fecha",100,"Jorge Montoya",{"v":750.75,"d":"750.75 €"},"Paranindal, S. L. ","Paquete","Correo","Fecha"]
[null,7000,"Fecha",101,"Miguel Torrez",{"v":2500,"d":"2,500.00 €"},"Baluerenda, S. A. ","2 equipos de escritorio","Crédito","Fecha"]

{"sheet":"BENEFICENCIA Y PATROCINIOS","index":3,"n_rows":6,"n_cols":12,"rows_kept":6,"merged":[[1,1,1,11],[2,1,2,5],[2,6,2,11]]}
[]
[null,"BENEFICENCIA Y PATROCINIOS"]
[]
[null,"Código de contabilidad general","Fecha de solicitud del cheque ","Solicitado por","Importe del cheque","Contribución año anterior","Beneficiario","Usado para","Aprobado por","Categoría","Método de distribución","Fecha del archivo"]
[null,12000,"Fecha","Isabel Robledo",{"v":1000,"d":"1,000.00 €"},{"v":12,"d":"12.00 €"},"Escuela de bellas artes ","Becas","Pedro Armijo","Arte","Cheque","Fecha"]
[null,11000,"Fecha","Isabel Robledo",{"v":2500,"d":"2,500.00 €"},{"v":0,"d":"0.00 €"},"Semuendera ","Comunidad","Elvira Cano","Comunidad","Cheque","Fecha"]